{"text_format":"1","workbook":"xlsx","n_sheets":3,"sheets":["00. MENU","01. PC"," 02. TARIFA"],"not_rendered":{"charts":0,"images":1,"macros":1,"external_links":0,"defined_names":10468,"comments":0,"pivot_tables":0},"unopened":[],"bounds":{"document_bytes":16777216,"sheet_cells":100000,"rows_first":2000,"rows_last":500,"rows_between":2000,"halvings":0,"cell_chars":16384,"cell_head_chars":4096},"cells_cut":0,"cells_raw":0,"read":"whole","date_system":"1900"}

{"sheet":"00. MENU","index":0,"n_rows":27,"n_cols":6,"rows_kept":27,"cut":false,"hidden":false,"merged":[[26,1,26,4],[25,1,25,4],[24,1,24,4],[11,1,21,9],[5,1,5,9],[9,1,9,9],[7,1,7,9]]}
[]
[]
[]
[]
[]
[null,"CONCESSÃO DE TRANSPORTE PÚBLICO DE PASSAGEIROS DA REGIÃO METROPOLITANA DE CURITIBA"]
[null,"01. PC"]
[null,"Dados de entrada para cálculo da TARIFA DE REMUNERAÇÃO TÉCNICA."]
[null,"02. TARIFA"]
[null,"Calcula o valor da tarifa para o sistema através da Metodologia de Cálculo Tarifário."]
[]
[null,"LOTE 2\nEsta planilha refere ao Apêndice ao ANEXO VIII e deve ser elaborado e apresentada pela parte interessada no Edital de Licitação que tem como objeto a \"CONCESSÃO da exploração, operação e manutenção do STPP, dividida em 04 (quatro) LOTES, para os LICITANTES que apresentarem a proposta mais vantajosa, conforme os termos deste EDITAL e seus ANEXOS.\".\nAs informações contidas nesta planilha são não vinculantes\nApenas as células com fundo amarelo e fonte azul devem ser preenchidas "]
[]
[]
[]
[]
[]
[]
[]
[]
[]
[]
[]
[null,"Padrão de formatação utilizado - Legenda"]
[null,"Células com fundo amarelo e fonte azul",null,null,null,"Células a serem preenchidas pela parte interessada"]
[null,"Células com fonte verde",null,null,null,"Células que têm origem em outra aba (Não alterar)"]
[null,"Células com fonte preta",null,null,null,"Fórmulas (Não alterar)"]

{"sheet":"01. PC","index":1,"n_rows":72,"n_cols":18,"rows_kept":72,"cut":false,"hidden":false,"merged":[]}
[]
[]
[null,null,null,null,null,null,null,null,null,null,null,null,null,null,null,null,"sim","não"]
[null,null,null,null,null,null,null,null,null,null,null,null,null,null,null,null,"sim","não"]
[null,null,null,null,null,null,null,null,null,null,null,null,null,null,null,null,"sim","não"]
[null,null,null,null,null,null,null,null,null,null,null,null,null,null,null,null,"sim","não"]
[]
[null,"Premissas","Valor"]
[]
[null,"Data base","2023-10-01"]
[]
[null,"Prazo - em anos",12]
[]
[null,"Tarifa pública",5.5]
[]
[null,"Proporção Veículos Euro V ao longo do contrato",0]
[]
[null,"Passageiros Equivalentes por ano",10174843.185327271]
[]
[null,"KM Total (mensal)",{"$f":"SUM(C22:C36)","v":811702.05429999984}]
[]
[null,"KM Micro (mensal)",0]
[null,null,null,null,"MICRO ESPECIAL EURO 6"]
[null,"KM Comum (mensal)",451478.94497999991]
[]
[null,"KM Semipadron multimodal (mensal)",119496.41846499998]
[]
[null,"KM Articulado Padrão (mensal)",55419.644863333349]
[]
[null,"KM Articulado Multimodal (mensal)",185307.04599166662]
[]
[null,"KM 5 portas LD (mensal)",0]
[]
[null,"KM Articulado Expresso ",0]
[]
[null,"KM Biarticulado",0]
[]
[null,"Total de Patrimonial",{"$f":"SUM(C40:C55)","v":171}]
[]
[null,"Unid. Micro",0]
[null,null,null,null,"MICRO ESPECIAL EURO 6"]
[null,"Unid. Comum (mensal)",92]
[]
[null,"Unid. Semipadron multimodal (mensal)",20]
[]
[null,"Unid. Articulado Padrão (mensal)",13]
[]
[null,"Unid. Articulado Multimodal (mensal)",46]
[]
[null,"Unid.  5 portas LD (mensal)",0]
[]
[null,"Unid. Articulado Expresso ",0]
[]
[null,"Unid. Biarticulado",0]
[]
[null,"Total Operante",{"$f":"SUM(C58:C73)","v":156}]
[]
[null,"Unid. Micro",0]
[null,null,null,null,"MICRO ESPECIAL EURO 6"]
[null,"Unid. Comum (mensal)",84]
[]
[null,"Unid. Semipadron multimodal (mensal)",18]
[]
[null,"Unid. Articulado Padrão (mensal)",12]
[]
[null,"Unid. Articulado Multimodal (mensal)",42]
[]
[null,"Unid.  5 portas LD (mensal)",0]
[]
[null,"Unid. Articulado Expresso ",0]
[]
[null,"Unid. Biarticulado",0]

{"sheet":" 02. TARIFA","index":2,"n_rows":1203,"n_cols":9,"rows_kept":1203,"cut":false,"hidden":false,"merged":[]}
[]
[]
[]
[]
[]
[]
[null,"Período",0,null,"Frota Patrimonial",null,"Frota Operacional",null,"PMM"]
[]
[null,"Custos Variáveis por KM Médio",{"$f":"SUM(C10:C14)","v":{"$error":"#DIV/0!"}},null,171,null,156,null,5203.2182967948711]
[null,"Combustível por KM",{"$f":"((C18*C$322)+(C24*C$325)+(C30*C$328)+(C36*C$331)+(C42*C$334)+(C48*C$337)+(C54*C$340)+(C60*C$343))/(C$408)","v":0}]
[null,"Lubrificante por KM",{"$f":"((C19*C$322)+(C25*C$325)+(C31*C$328)+(C37*C$331)+(C43*C$334)+(C49*C$337)+(C55*C$340)+(C61*C$343))/(C$408)","v":0}]
[null,"Arla 32 por KM",{"$f":"((C20*C$322)+(C26*C$325)+(C32*C$328)+(C38*C$331)+(C44*C$334)+(C50*C$337)+(C56*C$340)+(C62*C$343))/(C$408)","v":0}]
[null,"Rodagem por KM",{"$f":"((C21*C$322)+(C27*C$325)+(C33*C$328)+(C39*C$331)+(C45*C$334)+(C51*C$337)+(C57*C$340)+(C63*C$343))/(C$408)","v":{"$error":"#DIV/0!"}}]
[null,"Peças e Acessórios por KM",{"$f":"((C22*C$322)+(C28*C$325)+(C34*C$328)+(C40*C$331)+(C46*C$334)+(C52*C$337)+(C58*C$340)+(C64*C$343))/(C$408)","v":0}]
[]
[null,"Custos Variáveis - Por KM total",{"$f":"C17+C23+C29+C35+C41+C47+C53+C59","v":{"$error":"#DIV/0!"}}]
[null,"Micro Especial Euro 5 e Euro 6",{"$f":"IF(C70=0,0,SUM(C18:C22))","v":0}]
[null,"Combustível por KM",{"$f":"C71","v":0}]
[null,"Lubrificante por KM",{"$f":"C111","v":0}]
[null,"Arla 32 por KM",{"$f":"C145","v":0}]
[null,"Rodagem por KM",{"$f":"C218","v":{"$error":"#DIV/0!"}}]
[null,"Peças e Acessórios por KM",{"$f":"C320","v":0}]
[null,"Comum Euro 5 e Euro 6",{"$f":"IF(C75=0,0,SUM(C24:C28))","v":{"$error":"#DIV/0!"}}]
[null,"Combustível por KM",{"$f":"C76","v":0}]
[null,"Lubrificante por KM",{"$f":"C115","v":0}]
[null,"Arla 32 por KM",{"$f":"C149","v":0}]
[null,"Rodagem por KM",{"$f":"C221","v":{"$error":"#DIV/0!"}}]
[null,"Peças e Acessórios por KM",{"$f":"C323","v":0}]
[null,"Semipadron Multimodal Euro 5 e Euro 6",{"$f":"IF(C80=0,0,SUM(C30:C34))","v":{"$error":"#DIV/0!"}}]
[null,"Combustível por KM",{"$f":"C81","v":0}]
[null,"Lubrificante por KM",{"$f":"C119","v":0}]
[null,"Arla 32 por KM",{"$f":"C153","v":0}]
[null,"Rodagem por KM",{"$f":"C224","v":{"$error":"#DIV/0!"}}]
[null,"Peças e Acessórios por KM",{"$f":"C326","v":0}]
[null,"Articulado Padrão Euro 5 e Euro 6",{"$f":"IF(C85=0,0,SUM(C36:C40))","v":{"$error":"#DIV/0!"}}]
[null,"Combustível por KM",{"$f":"C86","v":0}]
[null,"Lubrificante por KM",{"$f":"C123","v":0}]
[null,"Arla 32 por KM",{"$f":"C157","v":0}]
[null,"Rodagem por KM",{"$f":"C227","v":{"$error":"#DIV/0!"}}]
[null,"Peças e Acessórios por KM",{"$f":"C329","v":0}]
[null,"Articulado Multimodal Euro 5 e Euro 6",{"$f":"IF(C90=0,0,SUM(C42:C46))","v":{"$error":"#DIV/0!"}}]
[null,"Combustível por KM",{"$f":"C91","v":0}]
[null,"Lubrificante por KM",{"$f":"C127","v":0}]
[null,"Arla 32 por KM",{"$f":"C161","v":0}]
[null,"Rodagem por KM",{"$f":"C230","v":{"$error":"#DIV/0!"}}]
[null,"Peças e Acessórios por KM",{"$f":"C332","v":0}]
[null,"Articulado 5 Portas LD Euro 5 e Euro 6",{"$f":"IF(C95=0,0,SUM(C48:C52))","v":0}]
[null,"Combustível por KM",{"$f":"C96","v":0}]
[null,"Lubrificante por KM",{"$f":"C131","v":0}]
[null,"Arla 32 por KM",{"$f":"C165","v":0}]
[null,"Rodagem por KM",{"$f":"C233","v":{"$error":"#DIV/0!"}}]
[null,"Peças e Acessórios por KM",{"$f":"C335","v":0}]
[null,"Articulado Expresso Euro 5 e Euro 6",{"$f":"IF(C100=0,0,SUM(C54:C58))","v":0}]
[null,"Combustível por KM",{"$f":"C101","v":0}]
[null,"Lubrificante por KM",{"$f":"C135","v":0}]
[null,"Arla 32 por KM",{"$f":"C169","v":0}]
[null,"Rodagem por KM",{"$f":"C236","v":{"$error":"#DIV/0!"}}]
[null,"Peças e Acessórios por KM",{"$f":"C338","v":0}]
[null,"Biarticulado Euro 5 e Euro 6",{"$f":"IF(C105=0,0,SUM(C60:C64))","v":0}]
[null,"Combustível por KM",{"$f":"C106","v":0}]
[null,"Lubrificante por KM",{"$f":"C139","v":0}]
[null,"Arla 32 por KM",{"$f":"C173","v":0}]
[null,"Rodagem por KM",{"$f":"C239","v":{"$error":"#DIV/0!"}}]
[null,"Peças e Acessórios por KM",{"$f":"C341","v":0}]
[]
[null,"Combustível - Por Veículo",{"$f":"C68/(C70+C80+C75+C85+C90+C95+C100+C105)","v":0}]
[]
[null,"Combustível - Total",{"$f":"C69+C74+C79+C84+C89+C94+C99+C104","v":0}]
[null,"Micro Especial Euro 5 e Euro 6",{"$f":"C70*C73*C72*C71","v":0}]
[null,"Frota Patrimonial",{"$f":"'01. PC'!C40","v":0}]
[null,"Custo por KM (Fator de Equivalência)",{"$f":"IF(C70=0,0,C72*C73)","v":0}]
[null,"Diesel R$/L"]
[null,"Coeficiente de Consumo"]
[null,"Comum Euro 5 e Euro 6",{"$f":"C75*C78*C77*C76","v":0}]
[null,"Frota Patrimonial",{"$f":"'01. PC'!C42","v":92}]
[null,"Custo por KM (Fator de Equivalência)",{"$f":"IF(C75=0,0,C77*C78)","v":0}]
[null,"Diesel R$/L"]
[null,"Coeficiente de Consumo"]
[null,"Semipadron Multimodal Euro 5 e Euro 6",{"$f":"C80*C83*C82*C81","v":0}]
[null,"Frota Patrimonial",{"$f":"'01. PC'!C44","v":20}]
[null,"Custo por KM (Fator de Equivalência)",{"$f":"IF(C80=0,0,C82*C83)","v":0}]
[null,"Diesel R$/L"]
[null,"Coeficiente de Consumo"]
[null,"Articulado Padrão Euro 5 e Euro 6",{"$f":"C85*C88*C87*C86","v":0}]
[null,"Frota Patrimonial",{"$f":"'01. PC'!C46","v":13}]
[null,"Custo por KM (Fator de Equivalência)",{"$f":"IF(C85=0,0,C87*C88)","v":0}]
[null,"Diesel R$/L"]
[null,"Coeficiente de Consumo"]
[null,"Articulado Multimodal Euro 5 e Euro 6",{"$f":"C90*C93*C92*C91","v":0}]
[null,"Frota Patrimonial",{"$f":"'01. PC'!C48","v":46}]
[null,"Custo por KM (Fator de Equivalência)",{"$f":"IF(C90=0,0,C92*C93)","v":0}]
[null,"Diesel R$/L"]
[null,"Coeficiente de Consumo"]
[null,"Articulado 5 Portas LD Euro 5 e Euro 6",{"$f":"C95*C98*C97*C96","v":0}]
[null,"Frota Patrimonial",{"$f":"'01. PC'!C50","v":0}]
[null,"Custo por KM (Fator de Equivalência)",{"$f":"IF(C95=0,0,C97*C98)","v":0}]
[null,"Diesel R$/L"]
[null,"Coeficiente de Consumo"]
[null,"Articulado Expresso Euro 5 e Euro 6",{"$f":"C100*C103*C102*C101","v":0}]
[null,"Frota Patrimonial",{"$f":"'01. PC'!C52","v":0}]
[null,"Custo por KM (Fator de Equivalência)",{"$f":"IF(C100=0,0,C102*C103)","v":0}]
[null,"Diesel R$/L"]
[null,"Coeficiente de Consumo"]
[null,"Biarticulado Euro 5 e Euro 6",{"$f":"C105*C108*C107*C106","v":0}]
[null,"Frota Patrimonial",{"$f":"'01. PC'!C54","v":0}]
[null,"Custo por KM (Fator de Equivalência)",{"$f":"IF(C105=0,0,C107*C108)","v":0}]
[null,"Diesel R$/L"]
[null,"Coeficiente de Consumo"]
[]
[null,"Lubrificantes - Por Veículo",{"$f":"C111+C115+C119+C123+C127+C131+C135+C139","v":0}]
[null,"Micro Especial Euro 5 e Euro 6",{"$f":"IF(C70=0,0,C112*C113*C114)","v":0}]
[null,"Preço Médio de Distribuição do Combustível com Isenção Tributária para a RMC (PrC)",{"$f":"$C$72","v":0}]
[null,"Coeficiente de Consumo de Combustível por categoria (CoCC)",{"$f":"$C$73","v":0}]
[null,"Coeficiente de correlação entre os custos de combustível e lubrificantes (CoLC)"]
[null,"Comum Euro 5 e Euro 6",{"$f":"IF(C75=0,0,C116*C117*C118)","v":0}]
[null,"Preço Médio de Distribuição do Combustível com Isenção Tributária para a RMC (PrC)",{"$f":"$C$72","v":0}]
[null,"Coeficiente de Consumo de Combustível por categoria (CoCC)",{"$f":"$C$78","v":0}]
[null,"Coeficiente de correlação entre os custos de combustível e lubrificantes (CoLC)"]
[null,"Semipadron Multimodal Euro 5 e Euro 6",{"$f":"IF(C80=0,0,C120*C121*C122)","v":0}]
[null,"Preço Médio de Distribuição do Combustível com Isenção Tributária para a RMC (PrC)",{"$f":"$C$72","v":0}]
[null,"Coeficiente de Consumo de Combustível por categoria (CoCC)",{"$f":"$C$83","v":0}]
[null,"Coeficiente de correlação entre os custos de combustível e lubrificantes (CoLC)"]
[null,"Articulado Padrão Euro 5 e Euro 6",{"$f":"IF(C85=0,0,C124*C125*C126)","v":0}]
[null,"Preço Médio de Distribuição do Combustível com Isenção Tributária para a RMC (PrC)",{"$f":"$C$72","v":0}]
[null,"Coeficiente de Consumo de Combustível por categoria (CoCC)",{"$f":"$C$88","v":0}]
[null,"Coeficiente de correlação entre os custos de combustível e lubrificantes (CoLC)"]
[null,"Articulado Multimodal Euro 5 e Euro 6",{"$f":"IF(C90=0,0,C128*C129*C130)","v":0}]
[null,"Preço Médio de Distribuição do Combustível com Isenção Tributária para a RMC (PrC)",{"$f":"$C$72","v":0}]
[null,"Coeficiente de Consumo de Combustível por categoria (CoCC)",{"$f":"$C$93","v":0}]
[null,"Coeficiente de correlação entre os custos de combustível e lubrificantes (CoLC)"]
[null,"Articulado 5 Portas LD Euro 5 e Euro 6",{"$f":"IF(C95=0,0,C132*C133*C134)","v":0}]
[null,"Preço Médio de Distribuição do Combustível com Isenção Tributária para a RMC (PrC)",{"$f":"$C$72","v":0}]
[null,"Coeficiente de Consumo de Combustível por categoria (CoCC)",{"$f":"$C$98","v":0}]
[null,"Coeficiente de correlação entre os custos de combustível e lubrificantes (CoLC)"]
[null,"Articulado Expresso Euro 5 e Euro 6",{"$f":"IF(C100=0,0,C136*C137*C138)","v":0}]
[null,"Preço Médio de Distribuição do Combustível com Isenção Tributária para a RMC (PrC)",{"$f":"$C$72","v":0}]
[null,"Coeficiente de Consumo de Combustível por categoria (CoCC)",{"$f":"$C$103","v":0}]
[null,"Coeficiente de correlação entre os custos de combustível e lubrificantes (CoLC)"]
[null,"Biarticulado Euro 5 e Euro 6",{"$f":"IF(C105=0,0,C140*C141*C142)","v":0}]
[null,"Preço Médio de Distribuição do Combustível com Isenção Tributária para a RMC (PrC)",{"$f":"$C$72","v":0}]
[null,"Coeficiente de Consumo de Combustível por categoria (CoCC)",{"$f":"$C$108","v":0}]
[null,"Coeficiente de correlação entre os custos de combustível e lubrificantes (CoLC)"]
[]
[null,"Arla 32 - Por Veículo",{"$f":"C145+C149+C153+C157+C161+C165+C169+C173","v":0}]
[null,"Micro Especial Euro 5 e Euro 6",{"$f":"IF(C70=0,0,C146*C147*C148)","v":0}]
[null,"Preço Médio de Distribuição do Combustível com Isenção Tributária para a RMC (PrC)",{"$f":"$C$72","v":0}]
[null,"Coeficiente de Consumo de Combustível por categoria (CoCC)",{"$f":"$C$73","v":0}]
[null,"Coeficiente de Correlação entre os custos de combustível e ARLA (CoAC)"]
[null,"Comum Euro 5 e Euro 6",{"$f":"IF(C75=0,0,C150*C151*C152)","v":0}]
[null,"Preço Médio de Distribuição do Combustível com Isenção Tributária para a RMC (PrC)",{"$f":"$C$72","v":0}]
[null,"Coeficiente de Consumo de Combustível por categoria (CoCC)",{"$f":"$C$78","v":0}]
[null,"Coeficiente de Correlação entre os custos de combustível e ARLA (CoAC)"]
[null,"Semipadron Multimodal Euro 5 e Euro 6",{"$f":"IF(C80=0,0,C154*C155*C156)","v":0}]
[null,"Preço Médio de Distribuição do Combustível com Isenção Tributária para a RMC (PrC)",{"$f":"$C$72","v":0}]
[null,"Coeficiente de Consumo de Combustível por categoria (CoCC)",{"$f":"$C$83","v":0}]
[null,"Coeficiente de Correlação entre os custos de combustível e ARLA (CoAC)"]
[null,"Articulado Padrão Euro 5 e Euro 6",{"$f":"IF(C85=0,0,C158*C159*C160)","v":0}]
[null,"Preço Médio de Distribuição do Combustível com Isenção Tributária para a RMC (PrC)",{"$f":"$C$72","v":0}]
[null,"Coeficiente de Consumo de Combustível por categoria (CoCC)",{"$f":"$C$88","v":0}]
[null,"Coeficiente de Correlação entre os custos de combustível e ARLA (CoAC)"]
[null,"Articulado Multimodal Euro 5 e Euro 6",{"$f":"IF(C90=0,0,C162*C163*C164)","v":0}]
[null,"Preço Médio de Distribuição do Combustível com Isenção Tributária para a RMC (PrC)",{"$f":"$C$72","v":0}]
[null,"Coeficiente de Consumo de Combustível por categoria (CoCC)",{"$f":"$C$93","v":0}]
[null,"Coeficiente de Correlação entre os custos de combustível e ARLA (CoAC)"]
[null,"Articulado 5 Portas LD Euro 5 e Euro 6",{"$f":"IF(C95=0,0,C166*C167*C168)","v":0}]
[null,"Preço Médio de Distribuição do Combustível com Isenção Tributária para a RMC (PrC)",{"$f":"$C$72","v":0}]
[null,"Coeficiente de Consumo de Combustível por categoria (CoCC)",{"$f":"$C$98","v":0}]
[null,"Coeficiente de Correlação entre os custos de combustível e ARLA (CoAC)"]
[null,"Articulado Expresso Euro 5 e Euro 6",{"$f":"IF(C100=0,0,C170*C171*C172)","v":0}]
[null,"Preço Médio de Distribuição do Combustível com Isenção Tributária para a RMC (PrC)",{"$f":"$C$72","v":0}]
[null,"Coeficiente de Consumo de Combustível por categoria (CoCC)",{"$f":"$C$103","v":0}]
[null,"Coeficiente de Correlação entre os custos de combustível e ARLA (CoAC)"]
[null,"Biarticulado Euro 5 e Euro 6",{"$f":"IF(C105=0,0,C174*C175*C176)","v":0}]
[null,"Preço Médio de Distribuição do Combustível com Isenção Tributária para a RMC (PrC)",{"$f":"$C$72","v":0}]
[null,"Coeficiente de Consumo de Combustível por categoria (CoCC)",{"$f":"$C$108","v":0}]
[null,"Coeficiente de Correlação entre os custos de combustível e ARLA (CoAC)"]
[]
[null,"Rodagem - Custo Ponderado",{"$f":"C179/C180","v":{"$error":"#DIV/0!"}}]
[null,"Rodagem - Total por KM",{"$f":"C182","v":{"$error":"#DIV/0!"}}]
[null,"Frota Patrimonial",{"$f":"$E$9","v":171}]
[]
[null,"Rodagem - Total por KM",{"$f":"C183+C199+C203+C187+C191+C195+C207+C211","v":{"$error":"#DIV/0!"}}]
[null,"Micro Especial Euro 5 e Euro 6",{"$f":"C184*C185*C186","v":{"$error":"#DIV/0!"}}]
[null,"Rodagem por KM",{"$f":"C218","v":{"$error":"#DIV/0!"}}]
[null,"Frota Patrimonial",{"$f":"C70","v":0}]
[null,"Fator de Equivalência",{"$f":"$C$71","v":0}]
[null,"Comum Euro 5 e Euro 6",{"$f":"C188*C189*C190","v":{"$error":"#DIV/0!"}}]
[null,"Rodagem por KM",{"$f":"C221","v":{"$error":"#DIV/0!"}}]
[null,"Frota Patrimonial",{"$f":"C75","v":92}]
[null,"Fator de Equivalência",{"$f":"$C$76","v":0}]
[null,"Semipadron Multimodal Euro 5 e Euro 6",{"$f":"C192*C193*C194","v":{"$error":"#DIV/0!"}}]
[null,"Rodagem por KM",{"$f":"C224","v":{"$error":"#DIV/0!"}}]
[null,"Frota Patrimonial",{"$f":"C80","v":20}]
[null,"Fator de Equivalência",{"$f":"$C$81","v":0}]
[null,"Articulado Padrão Euro 5 e Euro 6",{"$f":"C196*C197*C198","v":{"$error":"#DIV/0!"}}]
[null,"Rodagem por KM",{"$f":"C227","v":{"$error":"#DIV/0!"}}]
[null,"Frota Patrimonial",{"$f":"C85","v":13}]
[null,"Fator de Equivalência",{"$f":"$C$86","v":0}]
[null,"Articulado Multimodal Euro 5 e Euro 6",{"$f":"C200*C201*C202","v":{"$error":"#DIV/0!"}}]
[null,"Rodagem por KM",{"$f":"C230","v":{"$error":"#DIV/0!"}}]
[null,"Frota Patrimonial",{"$f":"C90","v":46}]
[null,"Fator de Equivalência",{"$f":"$C$91","v":0}]
[null,"Articulado 5 Portas LD Euro 5 e Euro 6",{"$f":"C204*C205*C206","v":{"$error":"#DIV/0!"}}]
[null,"Rodagem por KM",{"$f":"C233","v":{"$error":"#DIV/0!"}}]
[null,"Frota Patrimonial",{"$f":"C95","v":0}]
[null,"Fator de Equivalência",{"$f":"$C$96","v":0}]
[null,"Articulado Expresso Euro 5 e Euro 6",{"$f":"C208*C209*C210","v":{"$error":"#DIV/0!"}}]
[null,"Rodagem por KM",{"$f":"C236","v":{"$error":"#DIV/0!"}}]
[null,"Frota Patrimonial",{"$f":"C100","v":0}]
[null,"Fator de Equivalência",{"$f":"$C$101","v":0}]
[null,"Biarticulado Euro 5 e Euro 6",{"$f":"C212*C213*C214","v":{"$error":"#DIV/0!"}}]
[null,"Rodagem por KM",{"$f":"C239","v":{"$error":"#DIV/0!"}}]
[null,"Frota Patrimonial",{"$f":"C105","v":0}]
[null,"Fator de Equivalência",{"$f":"$C$106","v":0}]
[]
[null,"Rodagem - Por Tipo de Veículo por KM",{"$f":"C218+C224+C221+C227+C230+C233+C236+C239","v":{"$error":"#DIV/0!"}}]
[]
[null,"Micro Especial Euro 5 e Euro 6",{"$f":"C219/C220","v":{"$error":"#DIV/0!"}}]
[null,"Custo Total",{"$f":"C244","v":0}]
[null,"Vida Útil"]
[null,"Comum Euro 5 e Euro 6",{"$f":"C222/C223","v":{"$error":"#DIV/0!"}}]
[null,"Custo Total",{"$f":"C249","v":0}]
[null,"Vida Útil"]
[null,"Semipadron Multimodal Euro 5 e Euro 6",{"$f":"C225/C226","v":{"$error":"#DIV/0!"}}]
[null,"Custo Total",{"$f":"C254","v":0}]
[null,"Vida Útil"]
[null,"Articulado Padrão Euro 5 e Euro 6",{"$f":"C228/C229","v":{"$error":"#DIV/0!"}}]
[null,"Custo Total",{"$f":"C259","v":0}]
[null,"Vida Útil"]
[null,"Articulado Multimodal Euro 5 e Euro 6",{"$f":"C231/C232","v":{"$error":"#DIV/0!"}}]
[null,"Custo Total",{"$f":"C264","v":0}]
[null,"Vida Útil"]
[null,"Articulado 5 Portas LD Euro 5 e Euro 6",{"$f":"C234/C235","v":{"$error":"#DIV/0!"}}]
[null,"Custo Total",{"$f":"C269","v":0}]
[null,"Vida Útil"]
[null,"Articulado Expresso Euro 5 e Euro 6",{"$f":"C237/C238","v":{"$error":"#DIV/0!"}}]
[null,"Custo Total",{"$f":"C274","v":0}]
[null,"Vida Útil"]
[null,"Biarticulado Euro 5 e Euro 6",{"$f":"C240/C241","v":{"$error":"#DIV/0!"}}]
[null,"Custo Total",{"$f":"C279","v":0}]
[null,"Vida Útil"]
[]
[null,"Rodagem - Por Tipo de Veículo",{"$f":"C244+C264+C269+C249+C254+C259+C274+C279","v":0}]
[null,"Micro Especial Euro 5 e Euro 6",{"$f":"IF(C70=0,0,(C245*(C246+C247*C248)))","v":0}]
[null,"Quantidade de Pneus Necessários por Veículo (QPn)",6]
[null,"Preço unitário de Pneu (PPn) - 275/80 - R22,5"]
[null,"Quantidade de Recapagens Possíveis por Pneu ao longo de sua Vida Útil (QR)"]
[null,"Preço unitário de Recapagem (PR) - 275/80 - R22,5"]
[null,"Comum Euro 5 e Euro 6",{"$f":"IF(C75=0,0,(C250*(C251+C252*C253)))","v":0}]
[null,"Quantidade de Pneus Necessários por Veículo (QPn)",6]
[null,"Preço unitário de Pneu (PPn) - 275/80 - R22,5"]
[null,"Quantidade de Recapagens Possíveis por Pneu ao longo de sua Vida Útil (QR)"]
[null,"Preço unitário de Recapagem (PR) - 275/80 - R22,5"]
[null,"Semipadron Multimodal Euro 5 e Euro 6",{"$f":"IF(C80=0,0,(C255*(C256+C257*C258)))","v":0}]
[null,"Quantidade de Pneus Necessários por Veículo (QPn)",6]
[null,"Preço unitário de Pneu (PPn) - 275/80 - R22,5"]
[null,"Quantidade de Recapagens Possíveis por Pneu ao longo de sua Vida Útil (QR)"]
[null,"Preço unitário de Recapagem (PR) - 275/80 - R22,5"]
[null,"Articulado Padrão Euro 5 e Euro 6",{"$f":"IF(C85=0,0,(C260*(C261+C262*C263)))","v":0}]
[null,"Quantidade de Pneus Necessários por Veículo (QPn)",10]
[null,"Preço unitário de Pneu (PPn) - 295/80 - R22,5"]
[null,"Quantidade de Recapagens Possíveis por Pneu ao longo de sua Vida Útil (QR)"]
[null,"Preço unitário de Recapagem (PR) - 295/80 - R22,5"]
[null,"Articulado Multimodal Euro 5 e Euro 6",{"$f":"IF(C90=0,0,(C265*(C266+C267*C268)))","v":0}]
[null,"Quantidade de Pneus Necessários por Veículo (QPn)",10]
[null,"Preço unitário de Pneu (PPn) - 295/80 - R22,5"]
[null,"Quantidade de Recapagens Possíveis por Pneu ao longo de sua Vida Útil (QR)"]
[null,"Preço unitário de Recapagem (PR) - 295/80 - R22,5"]
[null,"Articulado 5 Portas LD Euro 5 e Euro 6",{"$f":"IF(C95=0,0,(C270*(C271+C272*C273)))","v":0}]
[null,"Quantidade de Pneus Necessários por Veículo (QPn)",10]
[null,"Preço unitário de Pneu (PPn) - 295/80 - R22,5"]
[null,"Quantidade de Recapagens Possíveis por Pneu ao longo de sua Vida Útil (QR)"]
[null,"Preço unitário de Recapagem (PR) - 295/80 - R22,5"]
[null,"Articulado Expresso Euro 5 e Euro 6",{"$f":"IF(C100=0,0,(C275*(C276+C277*C278)))","v":0}]
[null,"Quantidade de Pneus Necessários por Veículo (QPn)",12]
[null,"Preço unitário de Pneu (PPn) - 295/80 - R22,5"]
[null,"Quantidade de Recapagens Possíveis por Pneu ao longo de sua Vida Útil (QR)"]
[null,"Preço unitário de Recapagem (PR) - 295/80 - R22,5"]
[null,"Biarticulado Euro 5 e Euro 6",{"$f":"IF(C105=0,0,(C280*(C281+C282*C283)))","v":0}]
[null,"Quantidade de Pneus Necessários por Veículo (QPn)",14]
[null,"Preço unitário de Pneu (PPn) - 295/80 - R22,5"]
[null,"Quantidade de Recapagens Possíveis por Pneu ao longo de sua Vida Útil (QR)"]
[null,"Preço unitário de Recapagem (PR) - 295/80 - R22,5"]
[]
[null,"Peças e Acessórios - Por Tipo de Veículo",{"$f":"(C286+C290+C294+C298+C302+C306+C310+C314)/$E$9","v":0}]
[null,"Micro Especial Euro 5 e Euro 6",{"$f":"IFERROR((C287*C288*C289)/12,0)","v":0}]
[null,"Preço do Veículo Novo Sem Rodagem (PVNSR) - Euro VI"]
[null,"Coeficiente de Peças e Acessórios (CoCPA)"]
[null,"Frota Operacional - FO (Por Categoria de Veículo)",{"$f":"'01. PC'!$C$58","v":0}]
[null,"Comum Euro 5 e Euro 6",{"$f":"IFERROR((C291*C292*C293)/12,0)","v":0}]
[null,"Preço do Veículo Novo Sem Rodagem (PVNSR) - Euro VI"]
[null,"Coeficiente de Peças e Acessórios (CoCPA)"]
[null,"Frota Operacional - FO (Por Categoria de Veículo)",{"$f":"'01. PC'!$C$60","v":84}]
[null,"Semipadron Multimodal Euro 5 e Euro 6",{"$f":"IFERROR((C295*C296*C297)/12,0)","v":0}]
[null,"Preço do Veículo Novo Sem Rodagem (PVNSR) - Euro VI"]
[null,"Coeficiente de Peças e Acessórios (CoCPA)"]
[null,"Frota Operacional - FO (Por Categoria de Veículo)",{"$f":"'01. PC'!$C$62","v":18}]
[null,"Articulado Padrão Euro 5 e Euro 6",{"$f":"IFERROR((C299*C300*C301)/12,0)","v":0}]
[null,"Preço do Veículo Novo Sem Rodagem (PVNSR) - Euro VI"]
[null,"Coeficiente de Peças e Acessórios (CoCPA)"]
[null,"Frota Operacional - FO (Por Categoria de Veículo)",{"$f":"'01. PC'!$C$64","v":12}]
[null,"Articulado Multimodal Euro 5 e Euro 6",{"$f":"IFERROR((C303*C304*C305)/12,0)","v":0}]
[null,"Preço do Veículo Novo Sem Rodagem (PVNSR) - Euro VI"]
[null,"Coeficiente de Peças e Acessórios (CoCPA)"]
[null,"Frota Operacional - FO (Por Categoria de Veículo)",{"$f":"'01. PC'!$C$66","v":42}]
[null,"Articulado 5 Portas LD Euro 5 e Euro 6",{"$f":"IFERROR((C307*C308*C309)/12,0)","v":0}]
[null,"Preço do Veículo Novo Sem Rodagem (PVNSR) - Euro VI"]
[null,"Coeficiente de Peças e Acessórios (CoCPA)"]
[null,"Frota Operacional - FO (Por Categoria de Veículo)",{"$f":"'01. PC'!$C$68","v":0}]
[null,"Articulado Expresso Euro 5 e Euro 6",{"$f":"IFERROR((C311*C312*C313)/12,0)","v":0}]
[null,"Preço do Veículo Novo Sem Rodagem (PVNSR) - Euro VI"]
[null,"Coeficiente de Peças e Acessórios (CoCPA)"]
[null,"Frota Operacional - FO (Por Categoria de Veículo)",{"$f":"'01. PC'!$C$70","v":0}]
[null,"Biarticulado Euro 5 e Euro 6",{"$f":"IFERROR((C315*C316*C317)/12,0)","v":0}]
[null,"Preço do Veículo Novo Sem Rodagem (PVNSR) - Euro VI"]
[null,"Coeficiente de Peças e Acessórios (CoCPA)"]
[null,"Frota Operacional - FO (Por Categoria de Veículo)",{"$f":"'01. PC'!$C$72","v":0}]
[]
[null,"Peças e Acessórios - Por Tipo de Veículo por KM",{"$f":"SUM(C320,C323,C326,C329,C332,C335,C338,C341)","v":0}]
[null,"Micro Especial Euro 5 e Euro 6",{"$f":"IFERROR(C321/C322,0)","v":0}]
[null,"Peças e Acessórios",{"$f":"C286","v":0}]
[null,"Quilometragem Total Mês (Km/Mês)",{"$f":"'01. PC'!$C$22","v":0}]
[null,"Comum Euro 5 e Euro 6",{"$f":"IFERROR(C324/C325,0)","v":0}]
[null,"Peças e Acessórios",{"$f":"C290","v":0}]
[null,"Quilometragem Total Mês (Km/Mês)",{"$f":"'01. PC'!$C$24","v":451478.94497999991}]
[null,"Semipadron Multimodal Euro 5 e Euro 6",{"$f":"IFERROR(C327/C328,0)","v":0}]
[null,"Peças e Acessórios",{"$f":"C294","v":0}]
[null,"Quilometragem Total Mês (Km/Mês)",{"$f":"'01. PC'!$C$26","v":119496.41846499998}]
[null,"Articulado Padrão Euro 5 e Euro 6",{"$f":"IFERROR(C330/C331,0)","v":0}]
[null,"Peças e Acessórios",{"$f":"C298","v":0}]
[null,"Quilometragem Total Mês (Km/Mês)",{"$f":"'01. PC'!$C$28","v":55419.644863333349}]
[null,"Articulado Multimodal Euro 5 e Euro 6",{"$f":"IFERROR(C333/C334,0)","v":0}]
[null,"Peças e Acessórios",{"$f":"C302","v":0}]
[null,"Quilometragem Total Mês (Km/Mês)",{"$f":"'01. PC'!$C$30","v":185307.04599166662}]
[null,"Articulado 5 Portas LD Euro 5 e Euro 6",{"$f":"IFERROR(C336/C337,0)","v":0}]
[null,"Peças e Acessórios",{"$f":"C306","v":0}]
[null,"Quilometragem Total Mês (Km/Mês)",{"$f":"'01. PC'!$C$32","v":0}]
[null,"Articulado Expresso Euro 5 e Euro 6",{"$f":"IFERROR(C339/C340,0)","v":0}]
[null,"Peças e Acessórios",{"$f":"C310","v":0}]
[null,"Quilometragem Total Mês (Km/Mês)",{"$f":"'01. PC'!$C$34","v":0}]
[null,"Biarticulado Euro 5 e Euro 6",{"$f":"IFERROR(C342/C343,0)","v":0}]
[null,"Peças e Acessórios",{"$f":"C314","v":0}]
[null,"Quilometragem Total Mês (Km/Mês)",{"$f":"'01. PC'!$C$36","v":0}]
[]
[null,"Custos Fixos Totais por KM",{"$f":"SUM(C347:C350)","v":{"$error":"#DIV/0!"}}]
[]
[null,"Custo de Capital",{"$f":"C394","v":0}]
[null,"Despesas Administrativas",{"$f":"C1100","v":0}]
[null,"Despesas com Pessoal",{"$f":"C968","v":0}]
[null,"Outros Custos Operacionais",{"$f":"C1130","v":{"$error":"#DIV/0!"}}]
[]
[null,"Custos Fixo - Por KM por Tecnologia",{"$f":"C353+C358+C363+C368+C373+C378+C383+C388","v":{"$error":"#DIV/0!"}}]
[null,"Micro Especial Euro 5 e Euro 6",{"$f":"IF(C400=0,0,SUM(C354:C357))","v":0}]
[null,"Custo de Capital",{"$f":"IF('01. PC'!$C$22=0,0,(SUM($C$679,$C$684,$C$953,$C$960)/'01. PC'!$C$20+SUM(C694,C412)/'01. PC'!$C$22))","v":0}]
[null,"Despesas Administrativas",{"$f":"IF('01. PC'!$C$22=0,0,(SUM($C$679,$C$684,$C$953,$C$960)/'01. PC'!$C$20+SUM(C695,C413)/'01. PC'!$C$22))","v":0}]
[null,"Despesas com Pessoal",{"$f":"IF('01. PC'!$C$22=0,0,(SUM($C$679,$C$684,$C$953,$C$960)/'01. PC'!$C$20+SUM(C696,C414)/'01. PC'!$C$22))","v":0}]
[null,"Outros Custos Operacionais",{"$f":"IF('01. PC'!$C$22=0,0,(SUM($C$679,$C$684,$C$953,$C$960)/'01. PC'!$C$20+SUM(C697,C415)/'01. PC'!$C$22))","v":0}]
[null,"Comum Euro 5 e Euro 6",{"$f":"SUM(C359:C362)","v":{"$error":"#DIV/0!"}}]
[null,"Custo de Capital",{"$f":"IF('01. PC'!$C$24=0,0,(SUM($C$679,$C$684,$C$953,$C$960)/'01. PC'!$C$20+SUM(C727,C445)/'01. PC'!$C$24))","v":0}]
[null,"Despesas Administrativas",{"$f":"IF('01. PC'!$C$24=0,0,SUM($C$1107,$C$1113)/'01. PC'!$C$20)","v":0}]
[null,"Despesas com Pessoal",{"$f":"IF('01. PC'!$C$24=0,0,SUM($C$973,$C$1018)/'01. PC'!$C$20)","v":0}]
[null,"Outros Custos Operacionais",{"$f":"IF('01. PC'!$C$24=0,0,SUM($C$1131,$C$1134,$C$1146,$C$1151,$C$1166)/'01. PC'!$C$20)","v":{"$error":"#DIV/0!"}}]
[null,"Semipadron Multimodal Euro 5 e Euro 6",{"$f":"IF(C412=0,0,SUM(C364:C367))","v":0}]
[null,"Custo de Capital",{"$f":"IF('01. PC'!$C$26=0,0,(SUM($C$679,$C$684,$C$953,$C$960)/'01. PC'!$C$20+SUM(C759,C478)/'01. PC'!$C$26))","v":0}]
[null,"Despesas Administrativas",{"$f":"IF('01. PC'!$C$26=0,0,SUM($C$1107,$C$1113)/'01. PC'!$C$20)","v":0}]
[null,"Despesas com Pessoal",{"$f":"IF('01. PC'!$C$26=0,0,SUM($C$973,$C$1018)/'01. PC'!$C$20)","v":0}]
[null,"Outros Custos Operacionais",{"$f":"IF('01. PC'!$C$26=0,0,SUM($C$1131,$C$1134,$C$1146,$C$1151,$C$1166)/'01. PC'!$C$20)","v":{"$error":"#DIV/0!"}}]
[null,"Articulado Padrão Euro 5 e Euro 6",{"$f":"IF(C418=0,0,SUM(C369:C372))","v":0}]
[null,"Custo de Capital",{"$f":"IF('01. PC'!$C$28=0,0,(SUM($C$679,$C$684,$C$953,$C$960)/'01. PC'!$C$20+SUM(C791,C511)/'01. PC'!$C$28))","v":0}]
[null,"Despesas Administrativas",{"$f":"IF('01. PC'!$C$28=0,0,SUM($C$1107,$C$1113)/'01. PC'!$C$20)","v":0}]
[null,"Despesas com Pessoal",{"$f":"IF('01. PC'!$C$28=0,0,SUM($C$973,$C$1018)/'01. PC'!$C$20)","v":0}]
[null,"Outros Custos Operacionais",{"$f":"IF('01. PC'!$C$28=0,0,SUM($C$1131,$C$1134,$C$1146,$C$1151,$C$1166)/'01. PC'!$C$20)","v":{"$error":"#DIV/0!"}}]
[null,"Articulado Multimodal Euro 5 e Euro 6",{"$f":"IF(C424=0,0,SUM(C374:C377))","v":0}]
[null,"Custo de Capital",{"$f":"IF('01. PC'!$C$30=0,0,(SUM($C$679,$C$684,$C$953,$C$960)/'01. PC'!$C$20+SUM(C823,C544)/'01. PC'!$C$30))","v":0}]
[null,"Despesas Administrativas",{"$f":"IF('01. PC'!$C$30=0,0,SUM($C$1107,$C$1113)/'01. PC'!$C$20)","v":0}]
[null,"Despesas com Pessoal",{"$f":"IF('01. PC'!$C$30=0,0,SUM($C$973,$C$1018)/'01. PC'!$C$20)","v":0}]
[null,"Outros Custos Operacionais",{"$f":"IF('01. PC'!$C$30=0,0,SUM($C$1131,$C$1134,$C$1146,$C$1151,$C$1166)/'01. PC'!$C$20)","v":{"$error":"#DIV/0!"}}]
[null,"Articulado 5 Portas LD Euro 5 e Euro 6",{"$f":"IF(C430=0,0,SUM(C379:C382))","v":0}]
[null,"Custo de Capital",{"$f":"IF('01. PC'!$C$32=0,0,(SUM($C$679,$C$684,$C$953,$C$960)/'01. PC'!$C$20+SUM(C855,C577)/'01. PC'!$C$32))","v":0}]
[null,"Despesas Administrativas",{"$f":"IF('01. PC'!$C$32=0,0,SUM($C$1107,$C$1113)/'01. PC'!$C$20)","v":0}]
[null,"Despesas com Pessoal",{"$f":"IF('01. PC'!$C$32=0,0,SUM($C$973,$C$1018)/'01. PC'!$C$20)","v":0}]
[null,"Outros Custos Operacionais",{"$f":"IF('01. PC'!$C$32=0,0,SUM($C$1131,$C$1134,$C$1146,$C$1151,$C$1166)/'01. PC'!$C$20)","v":0}]
[null,"Articulado Expresso Euro 5 e Euro 6",{"$f":"IF(C436=0,0,SUM(C384:C387))","v":0}]
[null,"Custo de Capital",{"$f":"IF('01. PC'!$C$34=0,0,(SUM($C$679,$C$684,$C$953,$C$960)/'01. PC'!$C$20+SUM(C887,C610)/'01. PC'!$C$34))","v":0}]
[null,"Despesas Administrativas",{"$f":"IF('01. PC'!$C$34=0,0,SUM($C$1107,$C$1113)/'01. PC'!$C$20)","v":0}]
[null,"Despesas com Pessoal",{"$f":"IF('01. PC'!$C$34=0,0,SUM($C$973,$C$1018)/'01. PC'!$C$20)","v":0}]
[null,"Outros Custos Operacionais",{"$f":"IF('01. PC'!$C$34=0,0,SUM($C$1131,$C$1134,$C$1146,$C$1151,$C$1166)/'01. PC'!$C$20)","v":0}]
[null,"Biarticulado Euro 5 e Euro 6",{"$f":"IF(C442=0,0,SUM(C389:C392))","v":0}]
[null,"Custo de Capital",{"$f":"IF('01. PC'!$C$36=0,0,(SUM($C$679,$C$684,$C$953,$C$960)/'01. PC'!$C$20+SUM(C919,C643)/'01. PC'!$C$36))","v":0}]
[null,"Despesas Administrativas",{"$f":"IF('01. PC'!$C$36=0,0,SUM($C$1107,$C$1113)/'01. PC'!$C$20)","v":0}]
[null,"Despesas com Pessoal",{"$f":"IF('01. PC'!$C$36=0,0,SUM($C$973,$C$1018)/'01. PC'!$C$20)","v":0}]
[null,"Outros Custos Operacionais",{"$f":"IF('01. PC'!$C$36=0,0,SUM($C$1131,$C$1134,$C$1146,$C$1151,$C$1166)/'01. PC'!$C$20)","v":0}]
[]
[null,"Custo de Capital - Total",{"$f":"SUM(C396:C397)","v":0}]
[]
[null,"Depreciação - Total",{"$f":"C399","v":0}]
[null,"Remuneração - Total",{"$f":"C963","v":0}]
[]
[null,"Depreciação - Total",{"$f":"SUM(C401:C403)","v":0}]
[]
[null,"Depreciação dos Veículos Ponderada - Total",{"$f":"C405","v":0}]
[null,"Depreciação de Equipamentos e Mobiliário de Garagem - Total",{"$f":"C677","v":0}]
[null,"Depreciação dos Veículos de Apoio - Total",{"$f":"C682","v":0}]
[]
[null,"Depreciação dos Veículos Ponderada - Total",{"$f":"C407/C408","v":0}]
[]
[null,"Depreciação Mensal dos Veículos",{"$f":"C410","v":0}]
[null,"KM Mensal",{"$f":"'01. PC'!C20","v":811702.05429999984}]
[]
[null,"Depreciação dos Veículos - Total",{"$f":"C412+C544+C577+C445+C478+C511+C610+C643","v":0}]
[]
[null,"Depreciação Mensal do Micro Especial Euro 5 e Euro 6",{"$f":"(C415*C414)/C413","v":0}]
[null,"Meses por Ano",12]
[null,"Frota Patrimonial",{"$f":"SUM(C419:C431)","v":0}]
[null,"Depreciação Anual do Micro Especial Euro 5 e Euro 6",{"$f":"C416*C418","v":0}]
[null,"Custo do Veículo Novo - PMV"]
[null,"Proporção Veículos Euro V ao longo do contrato",{"$f":"'01. PC'!C16","v":0}]
[null,"Coeficiente de Depreciação da Frota"]
[null,"Veículos com 0 a 1 anos"]
[null,"Veículos com 1 a 2 anos"]
[null,"Veículos com 2 a 3 anos"]
[null,"Veículos com 3 a 4 anos"]
[null,"Veículos com 4 a 5 anos"]
[null,"Veículos com 5 a 6 anos"]
[null,"Veículos com 6 a 7 anos"]
[null,"Veículos com 7 a 8 anos"]
[null,"Veículos com 8 a 9 anos"]
[null,"Veículos com 9 a 10 anos"]
[null,"Veículos com 10 a 11 anos"]
[null,"Veículos com 11 a 12 anos"]
[null,"Veículos com 12 a 13 anos"]
[null,"Coeficiente de Depreciação - Veículos com 0 a 1 anos",0.13846153846153847]
[null,"Coeficiente de Depreciação - Veículos com 1 a 2 anos",0.12692307692307692]
[null,"Coeficiente de Depreciação - Veículos com 2 a 3 anos",0.11538461538461539]
[null,"Coeficiente de Depreciação - Veículos com 3 a 4 anos",0.10384615384615384]
[null,"Coeficiente de Depreciação - Veículos com 4 a 5 anos",9.2307692307692313E-2]
[null,"Coeficiente de Depreciação - Veículos com 5 a 6 anos",8.0769230769230774E-2]
[null,"Coeficiente de Depreciação - Veículos com 6 a 7 anos",6.9230769230769235E-2]
[null,"Coeficiente de Depreciação - Veículos com 7 a 8 anos",5.7692307692307696E-2]
[null,"Coeficiente de Depreciação - Veículos com 8 a 9 anos",4.6153846153846156E-2]
[null,"Coeficiente de Depreciação - Veículos com 9 a 10 anos",3.4615384615384617E-2]
[null,"Coeficiente de Depreciação - Veículos com 10 a 11 anos",2.3076923076923078E-2]
[null,"Coeficiente de Depreciação - Veículos com 11 a 12 anos",1.1538461538461539E-2]
[null,"Coeficiente de Depreciação - Veículos com 12 a 13 anos",1.1538461538461539E-2]
[null,"Depreciação Mensal do Comum Euro 5 e Euro 6",{"$f":"(C448*C447)/C446","v":0}]
[null,"Meses por Ano",{"$f":"$C$413","v":12}]
[null,"Frota Patrimonial",{"$f":"SUM(C452:C464)","v":0}]
[null,"Depreciação Anual do Comum Euro 5 e Euro 6",{"$f":"C449*C451","v":0}]
[null,"Custo do Veículo Novo - PMV"]
[null,"Proporção Veículos Euro V ao longo do contrato",{"$f":"$C$417","v":0}]
[null,"Coeficiente de Depreciação da Frota",{"$f":"(C470+C471)/2","v":7.5000000000000011E-2}]
[0,"Veículos com 0 a 1 anos"]
[1,"Veículos com 1 a 2 anos"]
[2,"Veículos com 2 a 3 anos"]
[3,"Veículos com 3 a 4 anos"]
[4,"Veículos com 4 a 5 anos"]
[5,"Veículos com 5 a 6 anos"]
[6,"Veículos com 6 a 7 anos"]
[7,"Veículos com 7 a 8 anos"]
[8,"Veículos com 8 a 9 anos"]
[9,"Veículos com 9 a 10 anos"]
[10,"Veículos com 10 a 11 anos"]
[11,"Veículos com 11 a 12 anos"]
[12,"Veículos com 12 a 13 anos"]
[null,"Coeficiente de Depreciação - Veículos com 0 a 1 anos",{"$f":"C432","v":0.13846153846153847}]
[null,"Coeficiente de Depreciação - Veículos com 1 a 2 anos",{"$f":"C433","v":0.12692307692307692}]
[null,"Coeficiente de Depreciação - Veículos com 2 a 3 anos",0.11538461538461539]
[null,"Coeficiente de Depreciação - Veículos com 3 a 4 anos",0.10384615384615384]
[null,"Coeficiente de Depreciação - Veículos com 4 a 5 anos",9.2307692307692313E-2]
[null,"Coeficiente de Depreciação - Veículos com 5 a 6 anos",8.0769230769230774E-2]
[null,"Coeficiente de Depreciação - Veículos com 6 a 7 anos",6.9230769230769235E-2]
[null,"Coeficiente de Depreciação - Veículos com 7 a 8 anos",5.7692307692307696E-2]
[null,"Coeficiente de Depreciação - Veículos com 8 a 9 anos",4.6153846153846156E-2]
[null,"Coeficiente de Depreciação - Veículos com 9 a 10 anos",3.4615384615384617E-2]
[null,"Coeficiente de Depreciação - Veículos com 10 a 11 anos",2.3076923076923078E-2]
[null,"Coeficiente de Depreciação - Veículos com 11 a 12 anos",1.1538461538461539E-2]
[null,"Coeficiente de Depreciação - Veículos com 12 a 13 anos",1.1538461538461539E-2]
[null,"Depreciação Mensal do Semipadron Multimodal Euro 5 e Euro 6",{"$f":"(C481*C480)/C479","v":0}]
[null,"Meses por Ano",{"$f":"$C$413","v":12}]
[null,"Frota Patrimonial",{"$f":"SUM(C485:C497)","v":0}]
[null,"Depreciação Anual do Semipadron Multimodal Euro 5 e Euro 6",{"$f":"C482*C484","v":0}]
[null,"Custo do Veículo Novo - PMV"]
[null,"Proporção Veículos Euro V ao longo do contrato",{"$f":"$C$417","v":0}]
[null,"Coeficiente de Depreciação da Frota",{"$f":"(C503+C504)/2","v":7.5000000000000011E-2}]
[0,"Veículos com 0 a 1 anos"]
[1,"Veículos com 1 a 2 anos"]
[2,"Veículos com 2 a 3 anos"]
[3,"Veículos com 3 a 4 anos"]
[4,"Veículos com 4 a 5 anos"]
[5,"Veículos com 5 a 6 anos"]
[6,"Veículos com 6 a 7 anos"]
[7,"Veículos com 7 a 8 anos"]
[8,"Veículos com 8 a 9 anos"]
[9,"Veículos com 9 a 10 anos"]
[10,"Veículos com 10 a 11 anos"]
[11,"Veículos com 11 a 12 anos"]
[12,"Veículos com 12 a 13 anos"]
[null,"Coeficiente de Depreciação - Veículos com 0 a 1 anos",{"$f":"C465","v":0.13846153846153847}]
[null,"Coeficiente de Depreciação - Veículos com 1 a 2 anos",{"$f":"C466","v":0.12692307692307692}]
[null,"Coeficiente de Depreciação - Veículos com 2 a 3 anos",0.11538461538461539]
[null,"Coeficiente de Depreciação - Veículos com 3 a 4 anos",0.10384615384615384]
[null,"Coeficiente de Depreciação - Veículos com 4 a 5 anos",9.2307692307692313E-2]
[null,"Coeficiente de Depreciação - Veículos com 5 a 6 anos",8.0769230769230774E-2]
[null,"Coeficiente de Depreciação - Veículos com 6 a 7 anos",6.9230769230769235E-2]
[null,"Coeficiente de Depreciação - Veículos com 7 a 8 anos",5.7692307692307696E-2]
[null,"Coeficiente de Depreciação - Veículos com 8 a 9 anos",4.6153846153846156E-2]
[null,"Coeficiente de Depreciação - Veículos com 9 a 10 anos",3.4615384615384617E-2]
[null,"Coeficiente de Depreciação - Veículos com 10 a 11 anos",2.3076923076923078E-2]
[null,"Coeficiente de Depreciação - Veículos com 11 a 12 anos",1.1538461538461539E-2]
[null,"Coeficiente de Depreciação - Veículos com 12 a 13 anos",1.1538461538461539E-2]
[null,"Depreciação Mensal do Articulado Padrão Euro 5 e Euro 6",{"$f":"(C514*C513)/C512","v":0}]
[null,"Meses por Ano",{"$f":"$C$413","v":12}]
[null,"Frota Patrimonial",{"$f":"SUM(C518:C530)","v":0}]
[null,"Depreciação Anual do Articulado Padrão Euro 5 e Euro 6",{"$f":"C515*C517","v":0}]
[null,"Custo do Veículo Novo - PMV"]
[null,"Proporção Veículos Euro V ao longo do contrato",{"$f":"$C$417","v":0}]
[null,"Coeficiente de Depreciação da Frota",{"$f":"(C536+C537)/2","v":7.5000000000000011E-2}]
[0,"Veículos com 0 a 1 anos"]
[1,"Veículos com 1 a 2 anos"]
[2,"Veículos com 2 a 3 anos"]
[3,"Veículos com 3 a 4 anos"]
[4,"Veículos com 4 a 5 anos"]
[5,"Veículos com 5 a 6 anos"]
[6,"Veículos com 6 a 7 anos"]
[7,"Veículos com 7 a 8 anos"]
[8,"Veículos com 8 a 9 anos"]
[9,"Veículos com 9 a 10 anos"]
[10,"Veículos com 10 a 11 anos"]
[11,"Veículos com 11 a 12 anos"]
[12,"Veículos com 12 a 13 anos"]
[null,"Coeficiente de Depreciação - Veículos com 0 a 1 anos",{"$f":"C498","v":0.13846153846153847}]
[null,"Coeficiente de Depreciação - Veículos com 1 a 2 anos",{"$f":"C499","v":0.12692307692307692}]
[null,"Coeficiente de Depreciação - Veículos com 2 a 3 anos",0.11538461538461539]
[null,"Coeficiente de Depreciação - Veículos com 3 a 4 anos",0.10384615384615384]
[null,"Coeficiente de Depreciação - Veículos com 4 a 5 anos",9.2307692307692313E-2]
[null,"Coeficiente de Depreciação - Veículos com 5 a 6 anos",8.0769230769230774E-2]
[null,"Coeficiente de Depreciação - Veículos com 6 a 7 anos",6.9230769230769235E-2]
[null,"Coeficiente de Depreciação - Veículos com 7 a 8 anos",5.7692307692307696E-2]
[null,"Coeficiente de Depreciação - Veículos com 8 a 9 anos",4.6153846153846156E-2]
[null,"Coeficiente de Depreciação - Veículos com 9 a 10 anos",3.4615384615384617E-2]
[null,"Coeficiente de Depreciação - Veículos com 10 a 11 anos",2.3076923076923078E-2]
[null,"Coeficiente de Depreciação - Veículos com 11 a 12 anos",1.1538461538461539E-2]
[null,"Coeficiente de Depreciação - Veículos com 12 a 13 anos",1.1538461538461539E-2]
[null,"Depreciação Mensal do Articulado Multimodal Euro 5 e Euro 6",{"$f":"(C547*C546)/C545","v":0}]
[null,"Meses por Ano",{"$f":"$C$413","v":12}]
[null,"Frota Patrimonial",{"$f":"SUM(C551:C563)","v":0}]
[null,"Depreciação Anual do Articulado Multimodal Euro 5 e Euro 6",{"$f":"C548*C550","v":0}]
[null,"Custo do Veículo Novo - PMV"]
[null,"Proporção Veículos Euro V ao longo do contrato",{"$f":"$C$417","v":0}]
[null,"Coeficiente de Depreciação da Frota",{"$f":"(C569+C570)/2","v":7.5000000000000011E-2}]
[0,"Veículos com 0 a 1 anos"]
[1,"Veículos com 1 a 2 anos"]
[2,"Veículos com 2 a 3 anos"]
[3,"Veículos com 3 a 4 anos"]
[4,"Veículos com 4 a 5 anos"]
[5,"Veículos com 5 a 6 anos"]
[6,"Veículos com 6 a 7 anos"]
[7,"Veículos com 7 a 8 anos"]
[8,"Veículos com 8 a 9 anos"]
[9,"Veículos com 9 a 10 anos"]
[10,"Veículos com 10 a 11 anos"]
[11,"Veículos com 11 a 12 anos"]
[12,"Veículos com 12 a 13 anos"]
[null,"Coeficiente de Depreciação - Veículos com 0 a 1 anos",{"$f":"C531","v":0.13846153846153847}]
[null,"Coeficiente de Depreciação - Veículos com 1 a 2 anos",{"$f":"C532","v":0.12692307692307692}]
[null,"Coeficiente de Depreciação - Veículos com 2 a 3 anos",0.11538461538461539]
[null,"Coeficiente de Depreciação - Veículos com 3 a 4 anos",0.10384615384615384]
[null,"Coeficiente de Depreciação - Veículos com 4 a 5 anos",9.2307692307692313E-2]
[null,"Coeficiente de Depreciação - Veículos com 5 a 6 anos",8.0769230769230774E-2]
[null,"Coeficiente de Depreciação - Veículos com 6 a 7 anos",6.9230769230769235E-2]
[null,"Coeficiente de Depreciação - Veículos com 7 a 8 anos",5.7692307692307696E-2]
[null,"Coeficiente de Depreciação - Veículos com 8 a 9 anos",4.6153846153846156E-2]
[null,"Coeficiente de Depreciação - Veículos com 9 a 10 anos",3.4615384615384617E-2]
[null,"Coeficiente de Depreciação - Veículos com 10 a 11 anos",2.3076923076923078E-2]
[null,"Coeficiente de Depreciação - Veículos com 11 a 12 anos",1.1538461538461539E-2]
[null,"Coeficiente de Depreciação - Veículos com 12 a 13 anos",1.1538461538461539E-2]
[null,"Depreciação Mensal do Articulado 5 Portas LD Euro 5 e Euro 6",{"$f":"(C580*C579)/C578","v":0}]
[null,"Meses por Ano",{"$f":"$C$413","v":12}]
[null,"Frota Patrimonial",{"$f":"SUM(C584:C596)","v":0}]
[null,"Depreciação Anual do Articulado 5 Portas LD Euro 5 e Euro 6",{"$f":"C581*C583","v":0}]
[null,"Custo do Veículo Novo - PMV"]
[null,"Proporção Veículos Euro V ao longo do contrato",{"$f":"$C$417","v":0}]
[null,"Coeficiente de Depreciação da Frota",{"$f":"(C602+C603)/2","v":7.5000000000000011E-2}]
[null,"Veículos com 0 a 1 anos"]
[null,"Veículos com 1 a 2 anos"]
[null,"Veículos com 2 a 3 anos"]
[null,"Veículos com 3 a 4 anos"]
[null,"Veículos com 4 a 5 anos"]
[null,"Veículos com 5 a 6 anos"]
[null,"Veículos com 6 a 7 anos"]
[null,"Veículos com 7 a 8 anos"]
[null,"Veículos com 8 a 9 anos"]
[null,"Veículos com 9 a 10 anos"]
[null,"Veículos com 10 a 11 anos"]
[null,"Veículos com 11 a 12 anos"]
[null,"Veículos com 12 a 13 anos"]
[null,"Coeficiente de Depreciação - Veículos com 0 a 1 anos",{"$f":"C564","v":0.13846153846153847}]
[null,"Coeficiente de Depreciação - Veículos com 1 a 2 anos",{"$f":"C565","v":0.12692307692307692}]
[null,"Coeficiente de Depreciação - Veículos com 2 a 3 anos",0.11538461538461539]
[null,"Coeficiente de Depreciação - Veículos com 3 a 4 anos",0.10384615384615384]
[null,"Coeficiente de Depreciação - Veículos com 4 a 5 anos",9.2307692307692313E-2]
[null,"Coeficiente de Depreciação - Veículos com 5 a 6 anos",8.0769230769230774E-2]
[null,"Coeficiente de Depreciação - Veículos com 6 a 7 anos",6.9230769230769235E-2]
[null,"Coeficiente de Depreciação - Veículos com 7 a 8 anos",5.7692307692307696E-2]
[null,"Coeficiente de Depreciação - Veículos com 8 a 9 anos",4.6153846153846156E-2]
[null,"Coeficiente de Depreciação - Veículos com 9 a 10 anos",3.4615384615384617E-2]
[null,"Coeficiente de Depreciação - Veículos com 10 a 11 anos",2.3076923076923078E-2]
[null,"Coeficiente de Depreciação - Veículos com 11 a 12 anos",1.1538461538461539E-2]
[null,"Coeficiente de Depreciação - Veículos com 12 a 13 anos",1.1538461538461539E-2]
[null,"Depreciação Mensal do Articulado Expresso Euro 5 e Euro 6",{"$f":"(C613*C612)/C611","v":0}]
[null,"Meses por Ano",{"$f":"$C$413","v":12}]
[null,"Frota Patrimonial",{"$f":"SUM(C617:C629)","v":0}]
[null,"Depreciação Anual do Articulado Expresso Euro 5 e Euro 6",{"$f":"C614*C616","v":0}]
[null,"Custo do Veículo Novo - PMV"]
[null,"Proporção Veículos Euro V ao longo do contrato",{"$f":"$C$417","v":0}]
[null,"Coeficiente de Depreciação da Frota",{"$f":"(C635+C636)/2","v":7.5000000000000011E-2}]
[null,"Veículos com 0 a 1 anos"]
[null,"Veículos com 1 a 2 anos"]
[null,"Veículos com 2 a 3 anos"]
[null,"Veículos com 3 a 4 anos"]
[null,"Veículos com 4 a 5 anos"]
[null,"Veículos com 5 a 6 anos"]
[null,"Veículos com 6 a 7 anos"]
[null,"Veículos com 7 a 8 anos"]
[null,"Veículos com 8 a 9 anos"]
[null,"Veículos com 9 a 10 anos"]
[null,"Veículos com 10 a 11 anos"]
[null,"Veículos com 11 a 12 anos"]
[null,"Veículos com 12 a 13 anos"]
[null,"Coeficiente de Depreciação - Veículos com 0 a 1 anos",{"$f":"C597","v":0.13846153846153847}]
[null,"Coeficiente de Depreciação - Veículos com 1 a 2 anos",{"$f":"C598","v":0.12692307692307692}]
[null,"Coeficiente de Depreciação - Veículos com 2 a 3 anos",0.11538461538461539]
[null,"Coeficiente de Depreciação - Veículos com 3 a 4 anos",0.10384615384615384]
[null,"Coeficiente de Depreciação - Veículos com 4 a 5 anos",9.2307692307692313E-2]
[null,"Coeficiente de Depreciação - Veículos com 5 a 6 anos",8.0769230769230774E-2]
[null,"Coeficiente de Depreciação - Veículos com 6 a 7 anos",6.9230769230769235E-2]
[null,"Coeficiente de Depreciação - Veículos com 7 a 8 anos",5.7692307692307696E-2]
[null,"Coeficiente de Depreciação - Veículos com 8 a 9 anos",4.6153846153846156E-2]
[null,"Coeficiente de Depreciação - Veículos com 9 a 10 anos",3.4615384615384617E-2]
[null,"Coeficiente de Depreciação - Veículos com 10 a 11 anos",2.3076923076923078E-2]
[null,"Coeficiente de Depreciação - Veículos com 11 a 12 anos",1.1538461538461539E-2]
[null,"Coeficiente de Depreciação - Veículos com 12 a 13 anos",1.1538461538461539E-2]
[null,"Depreciação Mensal do Biarticulado Euro 5 e Euro 6",{"$f":"(C646*C645)/C644","v":0}]
[null,"Meses por Ano",{"$f":"$C$413","v":12}]
[null,"Frota Patrimonial",{"$f":"SUM(C650:C662)","v":0}]
[null,"Depreciação Anual do Biarticulado Euro 5 e Euro 6",{"$f":"C647*C649","v":0}]
[null,"Custo do Veículo Novo - PMV"]
[null,"Proporção Veículos Euro V ao longo do contrato",{"$f":"$C$417","v":0}]
[null,"Coeficiente de Depreciação da Frota",{"$f":"(C668+C669)/2","v":7.5000000000000011E-2}]
[null,"Veículos com 0 a 1 anos"]
[null,"Veículos com 1 a 2 anos"]
[null,"Veículos com 2 a 3 anos"]
[null,"Veículos com 3 a 4 anos"]
[null,"Veículos com 4 a 5 anos"]
[null,"Veículos com 5 a 6 anos"]
[null,"Veículos com 6 a 7 anos"]
[null,"Veículos com 7 a 8 anos"]
[null,"Veículos com 8 a 9 anos"]
[null,"Veículos com 9 a 10 anos"]
[null,"Veículos com 10 a 11 anos"]
[null,"Veículos com 11 a 12 anos"]
[null,"Veículos com 12 a 13 anos"]
[null,"Coeficiente de Depreciação - Veículos com 0 a 1 anos",{"$f":"C630","v":0.13846153846153847}]
[null,"Coeficiente de Depreciação - Veículos com 1 a 2 anos",{"$f":"C631","v":0.12692307692307692}]
[null,"Coeficiente de Depreciação - Veículos com 2 a 3 anos",0.11538461538461539]
[null,"Coeficiente de Depreciação - Veículos com 3 a 4 anos",0.10384615384615384]
[null,"Coeficiente de Depreciação - Veículos com 4 a 5 anos",9.2307692307692313E-2]
[null,"Coeficiente de Depreciação - Veículos com 5 a 6 anos",8.0769230769230774E-2]
[null,"Coeficiente de Depreciação - Veículos com 6 a 7 anos",6.9230769230769235E-2]
[null,"Coeficiente de Depreciação - Veículos com 7 a 8 anos",5.7692307692307696E-2]
[null,"Coeficiente de Depreciação - Veículos com 8 a 9 anos",4.6153846153846156E-2]
[null,"Coeficiente de Depreciação - Veículos com 9 a 10 anos",3.4615384615384617E-2]
[null,"Coeficiente de Depreciação - Veículos com 10 a 11 anos",2.3076923076923078E-2]
[null,"Coeficiente de Depreciação - Veículos com 11 a 12 anos",1.1538461538461539E-2]
[null,"Coeficiente de Depreciação - Veículos com 12 a 13 anos",1.1538461538461539E-2]
[]
[null,"Depreciação de Equipamentos e Mobiliário de Garagem - Total",{"$f":"C679/C680","v":0}]
[]
[null,"Custo Mensal (R$)"]
[null,"Quilometragem Total",{"$f":"C408","v":811702.05429999984}]
[]
[null,"Depreciação dos Veículos de Apoio - Total",{"$f":"C684/C685","v":0}]
[]
[null,"Custo Mensal (R$)"]
[null,"Quilometragem Total",{"$f":"C680","v":811702.05429999984}]
[]
[null,"Remuneração dos Veículos Ponderada - Total",{"$f":"C689/C690","v":0}]
[]
[null,"Depreciação Mensal dos Veículos",{"$f":"C692","v":0}]
[null,"KM Mensal",{"$f":"C680","v":811702.05429999984}]
[]
[null,"Remuneração dos Veículos - Total",{"$f":"C694+C823+C855+C727+C759+C791+C887+C919","v":0}]
[]
[null,"Remuneração Mensal do Micro Especial Euro 5 e Euro 6",{"$f":"(C697*C696)/C695","v":0}]
[null,"Meses por Ano",{"$f":"$C$413","v":12}]
[null,"Frota Patrimonial",{"$f":"SUM(C700:C712)","v":0}]
[null,"Remuneração Anual do Micro Especial Euro 5 e Euro 6",{"$f":"C698*C699","v":0}]
[null,"Custo do Veículo Novo - PMV"]
[null,"Coeficiente de Remuneração da Frota",{"$f":"C720","v":0}]
[null,"Veículos com 0 a 1 anos",{"$f":"C419","v":0}]
[null,"Veículos com 1 a 2 anos",{"$f":"C420","v":0}]
[null,"Veículos com 2 a 3 anos",0]
[null,"Veículos com 3 a 4 anos",0]
[null,"Veículos com 4 a 5 anos",0]
[null,"Veículos com 5 a 6 anos",0]
[null,"Veículos com 6 a 7 anos",0]
[null,"Veículos com 7 a 8 anos",0]
[null,"Veículos com 8 a 9 anos",0]
[null,"Veículos com 9 a 10 anos",0]
[null,"Veículos com 10 a 11 anos",0]
[null,"Veículos com 11 a 12 anos",0]
[null,"Veículos com 12 a 13 anos",0]
[null,"Custo de capital"]
[null,"Coeficiente de Remuneração - Veículos com 0 a 1 anos",{"$f":"C713","v":0}]
[null,"Coeficiente de Remuneração - Veículos com 1 a 2 anos",{"$f":"$C$714*(1-SUM(C432:C$432))","v":0}]
[null,"Coeficiente de Remuneração - Veículos com 2 a 3 anos",{"$f":"$C$714*(1-SUM(C$432:C433))","v":0}]
[null,"Coeficiente de Remuneração - Veículos com 3 a 4 anos",{"$f":"$C$714*(1-SUM(C$432:C434))","v":0}]
[null,"Coeficiente de Remuneração - Veículos com 4 a 5 anos",{"$f":"$C$714*(1-SUM(C$432:C435))","v":0}]
[null,"Coeficiente de Remuneração - Veículos com 5 a 6 anos",{"$f":"$C$714*(1-SUM(C$432:C436))","v":0}]
[null,"Coeficiente de Remuneração - Veículos com 6 a 7 anos",{"$f":"$C$714*(1-SUM(C$432:C437))","v":0}]
[null,"Coeficiente de Remuneração - Veículos com 7 a 8 anos",{"$f":"$C$714*(1-SUM(C$432:C438))","v":0}]
[null,"Coeficiente de Remuneração - Veículos com 8 a 9 anos",{"$f":"$C$714*(1-SUM(C$432:C439))","v":0}]
[null,"Coeficiente de Remuneração - Veículos com 9 a 10 anos",{"$f":"$C$714*(1-SUM(C$432:C440))","v":0}]
[null,"Coeficiente de Remuneração - Veículos com 10 a 11 anos",{"$f":"$C$714*(1-SUM(C$432:C441))","v":0}]
[null,"Coeficiente de Remuneração - Veículos com 11 a 12 anos",{"$f":"$C$714*(1-SUM(C$432:C442))","v":0}]
[null,"Coeficiente de Remuneração - Veículos com 12 a 13 anos",{"$f":"$C$714*(1-SUM(C$432:C443))","v":0}]
[null,"Remuneração Mensal do Comum Euro 5 e Euro 6",{"$f":"(C730*C729)/C728","v":0}]
[null,"Meses por Ano",{"$f":"$C$413","v":12}]
[null,"Frota Patrimonial",{"$f":"SUM(C733:C745)","v":0}]
[null,"Remuneração Anual do Comum Euro 5 e Euro 6",{"$f":"C731*C732","v":0}]
[null,"Custo do Veículo Novo - PMV"]
[null,"Coeficiente de Remuneração da Frota",{"$f":"C752","v":0}]
[null,"Veículos com 0 a 1 anos",{"$f":"C452","v":0}]
[null,"Veículos com 1 a 2 anos",{"$f":"C453","v":0}]
[null,"Veículos com 2 a 3 anos",{"$f":"C454","v":0}]
[null,"Veículos com 3 a 4 anos",{"$f":"C455","v":0}]
[null,"Veículos com 4 a 5 anos",{"$f":"C456","v":0}]
[null,"Veículos com 5 a 6 anos",{"$f":"C457","v":0}]
[null,"Veículos com 6 a 7 anos",{"$f":"C458","v":0}]
[null,"Veículos com 7 a 8 anos",{"$f":"C459","v":0}]
[null,"Veículos com 8 a 9 anos",{"$f":"C460","v":0}]
[null,"Veículos com 9 a 10 anos",{"$f":"C461","v":0}]
[null,"Veículos com 10 a 11 anos",{"$f":"C462","v":0}]
[null,"Veículos com 11 a 12 anos",{"$f":"C463","v":0}]
[null,"Veículos com 12 a 13 anos",{"$f":"C464","v":0}]
[null,"Coeficiente de Remuneração - Veículos com 0 a 1 anos",{"$f":"C714","v":0}]
[null,"Coeficiente de Remuneração - Veículos com 1 a 2 anos",{"$f":"C715","v":0}]
[null,"Coeficiente de Remuneração - Veículos com 2 a 3 anos",0]
[null,"Coeficiente de Remuneração - Veículos com 3 a 4 anos",0]
[null,"Coeficiente de Remuneração - Veículos com 4 a 5 anos",0]
[null,"Coeficiente de Remuneração - Veículos com 5 a 6 anos",0]
[null,"Coeficiente de Remuneração - Veículos com 6 a 7 anos",0]
[null,"Coeficiente de Remuneração - Veículos com 7 a 8 anos",0]
[null,"Coeficiente de Remuneração - Veículos com 8 a 9 anos",0]
[null,"Coeficiente de Remuneração - Veículos com 9 a 10 anos",0]
[null,"Coeficiente de Remuneração - Veículos com 10 a 11 anos",0]
[null,"Coeficiente de Remuneração - Veículos com 11 a 12 anos",0]
[null,"Coeficiente de Remuneração - Veículos com 12 a 13 anos",0]
[null,"Remuneração Mensal do Semipadron Multimodal Euro 5 e Euro 6",{"$f":"(C762*C761)/C760","v":0}]
[null,"Meses por Ano",{"$f":"$C$413","v":12}]
[null,"Frota Patrimonial",{"$f":"SUM(C765:C777)","v":0}]
[null,"Remuneração Anual do Semipadron Multimodal Euro 5 e Euro 6",{"$f":"C763*C764","v":0}]
[null,"Custo do Veículo Novo - PMV"]
[null,"Coeficiente de Remuneração da Frota",{"$f":"C784","v":0}]
[null,"Veículos com 0 a 1 anos",{"$f":"C485","v":0}]
[null,"Veículos com 1 a 2 anos",{"$f":"C486","v":0}]
[null,"Veículos com 2 a 3 anos",{"$f":"C487","v":0}]
[null,"Veículos com 3 a 4 anos",{"$f":"C488","v":0}]
[null,"Veículos com 4 a 5 anos",{"$f":"C489","v":0}]
[null,"Veículos com 5 a 6 anos",{"$f":"C490","v":0}]
[null,"Veículos com 6 a 7 anos",{"$f":"C491","v":0}]
[null,"Veículos com 7 a 8 anos",{"$f":"C492","v":0}]
[null,"Veículos com 8 a 9 anos",{"$f":"C493","v":0}]
[null,"Veículos com 9 a 10 anos",{"$f":"C494","v":0}]
[null,"Veículos com 10 a 11 anos",{"$f":"C495","v":0}]
[null,"Veículos com 11 a 12 anos",{"$f":"C496","v":0}]
[null,"Veículos com 12 a 13 anos",{"$f":"C497","v":0}]
[null,"Coeficiente de Remuneração - Veículos com 0 a 1 anos",{"$f":"C746","v":0}]
[null,"Coeficiente de Remuneração - Veículos com 1 a 2 anos",{"$f":"C747","v":0}]
[null,"Coeficiente de Remuneração - Veículos com 2 a 3 anos",0]
[null,"Coeficiente de Remuneração - Veículos com 3 a 4 anos",0]
[null,"Coeficiente de Remuneração - Veículos com 4 a 5 anos",0]
[null,"Coeficiente de Remuneração - Veículos com 5 a 6 anos",0]
[null,"Coeficiente de Remuneração - Veículos com 6 a 7 anos",0]
[null,"Coeficiente de Remuneração - Veículos com 7 a 8 anos",0]
[null,"Coeficiente de Remuneração - Veículos com 8 a 9 anos",0]
[null,"Coeficiente de Remuneração - Veículos com 9 a 10 anos",0]
[null,"Coeficiente de Remuneração - Veículos com 10 a 11 anos",0]
[null,"Coeficiente de Remuneração - Veículos com 11 a 12 anos",0]
[null,"Coeficiente de Remuneração - Veículos com 12 a 13 anos",0]
[null,"Remuneração Mensal do Articulado Padrão Euro 5 e Euro 6",{"$f":"(C794*C793)/C792","v":0}]
[null,"Meses por Ano",{"$f":"$C$413","v":12}]
[null,"Frota Patrimonial",{"$f":"SUM(C797:C809)","v":0}]
[null,"Remuneração Anual do Articulado Padrão Euro 5 e Euro 6",{"$f":"C795*C796","v":0}]
[null,"Custo do Veículo Novo - PMV"]
[null,"Coeficiente de Remuneração da Frota",{"$f":"C816","v":0}]
[null,"Veículos com 0 a 1 anos",{"$f":"C518","v":0}]
[null,"Veículos com 1 a 2 anos",{"$f":"C519","v":0}]
[null,"Veículos com 2 a 3 anos",{"$f":"C520","v":0}]
[null,"Veículos com 3 a 4 anos",{"$f":"C521","v":0}]
[null,"Veículos com 4 a 5 anos",{"$f":"C522","v":0}]
[null,"Veículos com 5 a 6 anos",{"$f":"C523","v":0}]
[null,"Veículos com 6 a 7 anos",{"$f":"C524","v":0}]
[null,"Veículos com 7 a 8 anos",{"$f":"C525","v":0}]
[null,"Veículos com 8 a 9 anos",{"$f":"C526","v":0}]
[null,"Veículos com 9 a 10 anos",{"$f":"C527","v":0}]
[null,"Veículos com 10 a 11 anos",{"$f":"C528","v":0}]
[null,"Veículos com 11 a 12 anos",{"$f":"C529","v":0}]
[null,"Veículos com 12 a 13 anos",{"$f":"C530","v":0}]
[null,"Coeficiente de Remuneração - Veículos com 0 a 1 anos",{"$f":"C778","v":0}]
[null,"Coeficiente de Remuneração - Veículos com 1 a 2 anos",{"$f":"C779","v":0}]
[null,"Coeficiente de Remuneração - Veículos com 2 a 3 anos",0]
[null,"Coeficiente de Remuneração - Veículos com 3 a 4 anos",0]
[null,"Coeficiente de Remuneração - Veículos com 4 a 5 anos",0]
[null,"Coeficiente de Remuneração - Veículos com 5 a 6 anos",0]
[null,"Coeficiente de Remuneração - Veículos com 6 a 7 anos",0]
[null,"Coeficiente de Remuneração - Veículos com 7 a 8 anos",0]
[null,"Coeficiente de Remuneração - Veículos com 8 a 9 anos",0]
[null,"Coeficiente de Remuneração - Veículos com 9 a 10 anos",0]
[null,"Coeficiente de Remuneração - Veículos com 10 a 11 anos",0]
[null,"Coeficiente de Remuneração - Veículos com 11 a 12 anos",0]
[null,"Coeficiente de Remuneração - Veículos com 12 a 13 anos",0]
[null,"Remuneração Mensal do Articulado Multimodal Euro 5 e Euro 6",{"$f":"(C826*C825)/C824","v":0}]
[null,"Meses por Ano",{"$f":"$C$413","v":12}]
[null,"Frota Patrimonial",{"$f":"SUM(C829:C841)","v":0}]
[null,"Remuneração Anual do Articulado Multimodal Euro 5 e Euro 6",{"$f":"C827*C828","v":0}]
[null,"Custo do Veículo Novo - PMV"]
[null,"Coeficiente de Remuneração da Frota",{"$f":"C848","v":0}]
[null,"Veículos com 0 a 1 anos",{"$f":"C551","v":0}]
[null,"Veículos com 1 a 2 anos",{"$f":"C552","v":0}]
[null,"Veículos com 2 a 3 anos",{"$f":"C553","v":0}]
[null,"Veículos com 3 a 4 anos",{"$f":"C554","v":0}]
[null,"Veículos com 4 a 5 anos",{"$f":"C555","v":0}]
[null,"Veículos com 5 a 6 anos",{"$f":"C556","v":0}]
[null,"Veículos com 6 a 7 anos",{"$f":"C557","v":0}]
[null,"Veículos com 7 a 8 anos",{"$f":"C558","v":0}]
[null,"Veículos com 8 a 9 anos",{"$f":"C559","v":0}]
[null,"Veículos com 9 a 10 anos",{"$f":"C560","v":0}]
[null,"Veículos com 10 a 11 anos",{"$f":"C561","v":0}]
[null,"Veículos com 11 a 12 anos",{"$f":"C562","v":0}]
[null,"Veículos com 12 a 13 anos",{"$f":"C563","v":0}]
[null,"Coeficiente de Remuneração - Veículos com 0 a 1 anos",{"$f":"C810","v":0}]
[null,"Coeficiente de Remuneração - Veículos com 1 a 2 anos",{"$f":"C811","v":0}]
[null,"Coeficiente de Remuneração - Veículos com 2 a 3 anos",0]
[null,"Coeficiente de Remuneração - Veículos com 3 a 4 anos",0]
[null,"Coeficiente de Remuneração - Veículos com 4 a 5 anos",0]
[null,"Coeficiente de Remuneração - Veículos com 5 a 6 anos",0]
[null,"Coeficiente de Remuneração - Veículos com 6 a 7 anos",0]
[null,"Coeficiente de Remuneração - Veículos com 7 a 8 anos",0]
[null,"Coeficiente de Remuneração - Veículos com 8 a 9 anos",0]
[null,"Coeficiente de Remuneração - Veículos com 9 a 10 anos",0]
[null,"Coeficiente de Remuneração - Veículos com 10 a 11 anos",0]
[null,"Coeficiente de Remuneração - Veículos com 11 a 12 anos",0]
[null,"Coeficiente de Remuneração - Veículos com 12 a 13 anos",0]
[null,"Remuneração Mensal do Articulado 5 Portas LD Euro 5 e Euro 6",{"$f":"(C858*C857)/C856","v":0}]
[null,"Meses por Ano",{"$f":"$C$413","v":12}]
[null,"Frota Patrimonial",{"$f":"SUM(C861:C873)","v":0}]
[null,"Remuneração Anual do Articulado 5 Portas LD Euro 5 e Euro 6",{"$f":"C859*C860","v":0}]
[null,"Custo do Veículo Novo - PMV"]
[null,"Coeficiente de Remuneração da Frota",{"$f":"C880","v":0}]
[null,"Veículos com 0 a 1 anos",{"$f":"C584","v":0}]
[null,"Veículos com 1 a 2 anos",{"$f":"C585","v":0}]
[null,"Veículos com 2 a 3 anos",{"$f":"C586","v":0}]
[null,"Veículos com 3 a 4 anos",{"$f":"C587","v":0}]
[null,"Veículos com 4 a 5 anos",{"$f":"C588","v":0}]
[null,"Veículos com 5 a 6 anos",{"$f":"C589","v":0}]
[null,"Veículos com 6 a 7 anos",{"$f":"C590","v":0}]
[null,"Veículos com 7 a 8 anos",{"$f":"C591","v":0}]
[null,"Veículos com 8 a 9 anos",{"$f":"C592","v":0}]
[null,"Veículos com 9 a 10 anos",{"$f":"C593","v":0}]
[null,"Veículos com 10 a 11 anos",{"$f":"C594","v":0}]
[null,"Veículos com 11 a 12 anos",{"$f":"C595","v":0}]
[null,"Veículos com 12 a 13 anos",{"$f":"C596","v":0}]
[null,"Coeficiente de Remuneração - Veículos com 0 a 1 anos",{"$f":"C842","v":0}]
[null,"Coeficiente de Remuneração - Veículos com 1 a 2 anos",{"$f":"C843","v":0}]
[null,"Coeficiente de Remuneração - Veículos com 2 a 3 anos",0]
[null,"Coeficiente de Remuneração - Veículos com 3 a 4 anos",0]
[null,"Coeficiente de Remuneração - Veículos com 4 a 5 anos",0]
[null,"Coeficiente de Remuneração - Veículos com 5 a 6 anos",0]
[null,"Coeficiente de Remuneração - Veículos com 6 a 7 anos",0]
[null,"Coeficiente de Remuneração - Veículos com 7 a 8 anos",0]
[null,"Coeficiente de Remuneração - Veículos com 8 a 9 anos",0]
[null,"Coeficiente de Remuneração - Veículos com 9 a 10 anos",0]
[null,"Coeficiente de Remuneração - Veículos com 10 a 11 anos",0]
[null,"Coeficiente de Remuneração - Veículos com 11 a 12 anos",0]
[null,"Coeficiente de Remuneração - Veículos com 12 a 13 anos",0]
[null,"Remuneração Mensal do Articulado Expresso Euro 5 e Euro 6",{"$f":"(C890*C889)/C888","v":0}]
[null,"Meses por Ano",{"$f":"$C$413","v":12}]
[null,"Frota Patrimonial",{"$f":"SUM(C893:C905)","v":0}]
[null,"Remuneração Anual do Articulado Expresso Euro 5 e Euro 6",{"$f":"C891*C892","v":0}]
[null,"Custo do Veículo Novo - PMV"]
[null,"Coeficiente de Remuneração da Frota",{"$f":"C912","v":0}]
[null,"Veículos com 0 a 1 anos",{"$f":"C617","v":0}]
[null,"Veículos com 1 a 2 anos",{"$f":"C618","v":0}]
[null,"Veículos com 2 a 3 anos",{"$f":"C619","v":0}]
[null,"Veículos com 3 a 4 anos",{"$f":"C620","v":0}]
[null,"Veículos com 4 a 5 anos",{"$f":"C621","v":0}]
[null,"Veículos com 5 a 6 anos",{"$f":"C622","v":0}]
[null,"Veículos com 6 a 7 anos",{"$f":"C623","v":0}]
[null,"Veículos com 7 a 8 anos",{"$f":"C624","v":0}]
[null,"Veículos com 8 a 9 anos",{"$f":"C625","v":0}]
[null,"Veículos com 9 a 10 anos",{"$f":"C626","v":0}]
[null,"Veículos com 10 a 11 anos",{"$f":"C627","v":0}]
[null,"Veículos com 11 a 12 anos",{"$f":"C628","v":0}]
[null,"Veículos com 12 a 13 anos",{"$f":"C629","v":0}]
[null,"Coeficiente de Remuneração - Veículos com 0 a 1 anos",{"$f":"C874","v":0}]
[null,"Coeficiente de Remuneração - Veículos com 1 a 2 anos",{"$f":"C875","v":0}]
[null,"Coeficiente de Remuneração - Veículos com 2 a 3 anos",0]
[null,"Coeficiente de Remuneração - Veículos com 3 a 4 anos",0]
[null,"Coeficiente de Remuneração - Veículos com 4 a 5 anos",0]
[null,"Coeficiente de Remuneração - Veículos com 5 a 6 anos",0]
[null,"Coeficiente de Remuneração - Veículos com 6 a 7 anos",0]
[null,"Coeficiente de Remuneração - Veículos com 7 a 8 anos",0]
[null,"Coeficiente de Remuneração - Veículos com 8 a 9 anos",0]
[null,"Coeficiente de Remuneração - Veículos com 9 a 10 anos",0]
[null,"Coeficiente de Remuneração - Veículos com 10 a 11 anos",0]
[null,"Coeficiente de Remuneração - Veículos com 11 a 12 anos",0]
[null,"Coeficiente de Remuneração - Veículos com 12 a 13 anos",0]
[null,"Remuneração Mensal do Biarticulado Euro 5 e Euro 6",{"$f":"(C922*C921)/C920","v":0}]
[null,"Meses por Ano",{"$f":"$C$413","v":12}]
[null,"Frota Patrimonial",{"$f":"SUM(C925:C937)","v":0}]
[null,"Remuneração Anual do Biarticulado Euro 5 e Euro 6",{"$f":"C923*C924","v":0}]
[null,"Custo do Veículo Novo - PMV"]
[null,"Coeficiente de Remuneração da Frota",{"$f":"C944","v":0}]
[null,"Veículos com 0 a 1 anos",{"$f":"C650","v":0}]
[null,"Veículos com 1 a 2 anos",0]
[null,"Veículos com 2 a 3 anos",0]
[null,"Veículos com 3 a 4 anos",0]
[null,"Veículos com 4 a 5 anos",0]
[null,"Veículos com 5 a 6 anos",0]
[null,"Veículos com 6 a 7 anos",0]
[null,"Veículos com 7 a 8 anos",0]
[null,"Veículos com 8 a 9 anos",0]
[null,"Veículos com 9 a 10 anos",0]
[null,"Veículos com 10 a 11 anos",0]
[null,"Veículos com 11 a 12 anos",0]
[null,"Veículos com 12 a 13 anos",0]
[null,"Coeficiente de Remuneração - Veículos com 0 a 1 anos",{"$f":"C906","v":0}]
[null,"Coeficiente de Remuneração - Veículos com 1 a 2 anos",{"$f":"C907","v":0}]
[null,"Coeficiente de Remuneração - Veículos com 2 a 3 anos",0]
[null,"Coeficiente de Remuneração - Veículos com 3 a 4 anos",0]
[null,"Coeficiente de Remuneração - Veículos com 4 a 5 anos",0]
[null,"Coeficiente de Remuneração - Veículos com 5 a 6 anos",0]
[null,"Coeficiente de Remuneração - Veículos com 6 a 7 anos",0]
[null,"Coeficiente de Remuneração - Veículos com 7 a 8 anos",0]
[null,"Coeficiente de Remuneração - Veículos com 8 a 9 anos",0]
[null,"Coeficiente de Remuneração - Veículos com 9 a 10 anos",0]
[null,"Coeficiente de Remuneração - Veículos com 10 a 11 anos",0]
[null,"Coeficiente de Remuneração - Veículos com 11 a 12 anos",0]
[null,"Coeficiente de Remuneração - Veículos com 12 a 13 anos",0]
[]
[null,"Remuneração de Equipamentos e Mobiliário de Garagem - Total",{"$f":"C953/C956","v":0}]
[null,"Remuneração Mensal de Equipamentos e Mobiliário de Garagem",{"$f":"C955/C954","v":0}]
[null,"Meses",{"$f":"$C$413","v":12}]
[null,"Valor anual"]
[null,"Quilometragem Total",{"$f":"C690","v":811702.05429999984}]
[]
[null,"Remuneração de Veículos de Apoio - Total",{"$f":"C960/C959","v":0}]
[null,"Quilometragem Total",{"$f":"C956","v":811702.05429999984}]
[null,"Remuneração Mensal Veículos de Apoio",{"$f":"C961/12","v":0}]
[null,"Valor anual"]
[]
[null,"Remuneração - Total",{"$f":"SUM(C964:C966)","v":0}]
[null,"Remuneração dos Veículos Ponderada - Total",{"$f":"C687","v":0}]
[null,"Remuneração de Equipamentos e Mobiliário de Garagem - Total",{"$f":"C952","v":0}]
[null,"Remuneração de Veículos de Apoio - Total",{"$f":"C958","v":0}]
[]
[null,"Despesas com Pessoal - Total por KM",{"$f":"SUM(C969:C970)/C971","v":0}]
[null,"Despesas com Pessoal de Operação - Motoristas e Cobradores",{"$f":"C973","v":0}]
[null,"Despesas com Pessoal de Manutenção, Administração, Gerência e Diretoria",{"$f":"C1018","v":0}]
[null,"Quilometragem Total",{"$f":"C959","v":811702.05429999984}]
[]
[null,"Despesas com Pessoal - Operação",{"$f":"C974+C989+C1004","v":0}]
[null,"Motoristas",{"$f":"C975*C976","v":0}]
[null,"Quantidade"]
[null,"Preço",{"$f":"(C977+C980+C986)","v":0}]
[null,"Salários",{"$f":"SUM(C978:C979)","v":0}]
[null,"Salário Base"]
[null,"Adicional por Tempo de Serviço"]
[null,"Benefícios",{"$f":"SUM(C981:C985)","v":0}]
[null,"Gratificação Ajustada"]
[null,"Auxílio Alimentação"]
[null,"Auxílio Saúde"]
[null,"Seguro de Vida"]
[null,"Uniformes"]
[null,"Encargos Sociais",{"$f":"C977*C987","v":0}]
[null,"Porcentagem"]
[]
[null,"Motoristas - Cobranças",{"$f":"C990*C991","v":0}]
[null,"Quantidade"]
[null,"Preço",{"$f":"(C992+C995+C1001)","v":0}]
[null,"Salários",{"$f":"SUM(C993:C994)","v":0}]
[null,"Salário Base"]
[null,"Adicional por Tempo de Serviço"]
[null,"Benefícios",{"$f":"SUM(C996:C1000)","v":0}]
[null,"Gratificação Ajustada"]
[null,"Auxílio Alimentação"]
[null,"Auxílio Saúde"]
[null,"Seguro de Vida"]
[null,"Uniformes"]
[null,"Encargos Sociais",{"$f":"C992*C1002","v":0}]
[null,"Porcentagem"]
[]
[null,"Cobradores",{"$f":"C1005*C1006","v":0}]
[null,"Quantidade"]
[null,"Preço",{"$f":"(C1007+C1010+C1016)","v":0}]
[null,"Salários",{"$f":"SUM(C1008:C1009)","v":0}]
[null,"Salário Base"]
[null,"Adicional por Tempo de Serviço"]
[null,"Benefícios",{"$f":"SUM(C1011:C1015)","v":0}]
[null,"Auxílio Alimentação"]
[null,"Auxílio Saúde"]
[null,"Seguro de Vida"]
[null,"Uniformes"]
[null,"Encargos Sociais",{"$f":"C1007*C1016","v":0}]
[null,"Porcentagem"]
[]
[null,"Despesas com Pessoal de Manutenção, Administração, Gerência e Diretoria",{"$f":"C1019","v":0}]
[null,"Custo Mensal Total",{"$f":"SUM(C1020,C1035,C1048,C1061,C1074,C1087)","v":0}]
[null,"Menores Aprendizes - Custo Mensal Total",{"$f":"C1021*C1022","v":0}]
[null,"Quantidade"]
[null,"Valor",{"$f":"SUM(C1023,C1026,C1032)","v":0}]
[null,"Salário",{"$f":"C1024*C1025","v":0}]
[null,"Salário Base"]
[null,"Coeficiente do salário base"]
[null,"Benefícios",{"$f":"SUM(C1027:C1028)*C1025+SUM(C1029:C1031)","v":0}]
[null,"Gratificação Ajustada"]
[null,"Auxílio Alimentação"]
[null,"Auxílio Saúde"]
[null,"Seguro de Vida"]
[null,"Uniformes"]
[null,"Encargos Sociais Mensais",{"$f":"C1033*SUM(C1023,C1027)","v":0}]
[null,"Percentagem"]
[]
[null,"Manutenção - Custo Mensal Total",{"$f":"C1036*C1037","v":0}]
[null,"Quantidade"]
[null,"Valor",{"$f":"SUM(C1038,C1039,C1045)","v":0}]
[null,"Salário Médio Ponderado"]
[null,"Benefícios",{"$f":"SUM(C1040:C1044)","v":0}]
[null,"Gratificação Média"]
[null,"Auxílio Alimentação Médio",{"$f":"$C$982","v":0}]
[null,"Auxílio Saúde",{"$f":"$C$983","v":0}]
[null,"Seguro de Vida",{"$f":"$C$984","v":0}]
[null,"Uniformes"]
[null,"Encargos Sociais Mensais",{"$f":"C1046*SUM(C1038,C1040)","v":0}]
[null,"Percentagem"]
[]
[null,"Administração",{"$f":"C1049*C1050","v":0}]
[null,"Quantidade"]
[null,"Valor",{"$f":"SUM(C1051,C1052,C1058)","v":0}]
[null,"Salário Médio"]
[null,"Benefícios",{"$f":"SUM(C1053:C1057)","v":0}]
[null,"Gratificação Média"]
[null,"Auxílio Alimentação Médio",{"$f":"$C$982","v":0}]
[null,"Auxílio Saúde",{"$f":"$C$983","v":0}]
[null,"Seguro de Vida",{"$f":"$C$984","v":0}]
[null,"Uniformes"]
[null,"Encargos Sociais Mensais",{"$f":"C1059*SUM(C1051,C1053)","v":0}]
[null,"Percentagem"]
[]
[null,"Gerência",{"$f":"C1062*C1063","v":0}]
[null,"Quantidade"]
[null,"Valor",{"$f":"SUM(C1064,C1065,C1071)","v":0}]
[null,"Salário Médio"]
[null,"Benefícios",{"$f":"SUM(C1066:C1070)","v":0}]
[null,"Gratificação Média"]
[null,"Auxílio Alimentação Médio",{"$f":"$C$982","v":0}]
[null,"Auxílio Saúde",{"$f":"$C$983","v":0}]
[null,"Seguro de Vida",{"$f":"$C$984","v":0}]
[null,"Uniformes"]
[null,"Encargos Sociais Mensais",{"$f":"C1072*SUM(C1064,C1066)","v":0}]
[null,"Percentagem"]
[]
[null,"Diretoria - Custo Mensal Total",{"$f":"C1075*C1076","v":0}]
[null,"Quantidade"]
[null,"Valor",{"$f":"SUM(C1077,C1078,C1084)","v":0}]
[null,"Salário Médio"]
[null,"Benefícios",{"$f":"SUM(C1079:C1083)","v":0}]
[null,"Gratificação Média"]
[null,"Auxílio Alimentação Médio",{"$f":"$C$982","v":0}]
[null,"Auxílio Saúde",{"$f":"$C$983","v":0}]
[null,"Seguro de Vida",{"$f":"$C$984","v":0}]
[null,"Uniformes"]
[null,"Encargos Sociais Mensais",{"$f":"C1085*SUM(C1077,C1079)","v":0}]
[null,"Percentagem"]
[]
[null,"Presidente - Custo Mensal Total",{"$f":"C1088*C1089","v":0}]
[null,"Quantidade"]
[null,"Valor",{"$f":"SUM(C1090,C1091,C1097)","v":0}]
[null,"Salário Médio"]
[null,"Benefícios",{"$f":"SUM(C1092:C1096)","v":0}]
[null,"Gratificação Média"]
[null,"Auxílio Alimentação Médio",{"$f":"$C$982","v":0}]
[null,"Auxílio Saúde",{"$f":"$C$983","v":0}]
[null,"Seguro de Vida",{"$f":"$C$984","v":0}]
[null,"Uniformes",0]
[null,"Encargos Sociais Mensais",{"$f":"C1098*SUM(C1090,C1092)","v":0}]
[null,"Percentagem"]
[]
[null,"Despesas Administrativas - Total por KM",{"$f":"(C1101+C1102)/C1105","v":0}]
[null,"Despesas Administrativas Gerais - Total",{"$f":"C1107","v":0}]
[null,"Licenciamento de Veículos - Total",{"$f":"C1113","v":0}]
[null,"Seguros - Total",{"$f":"C1119","v":0}]
[null,"Custo Ambiental - Total",{"$f":"C1124","v":0}]
[null,"Quilometragem Total",{"$f":"C971","v":811702.05429999984}]
[]
[null,"Despesas Administrativas Gerais - Total",{"$f":"(C1108*C1109*C1110)/C1111","v":0}]
[null,"Preço do Veículo Novo Completo (PVNC) - Euro VI"]
[null,"Coeficiente de Despesas Administrativas (do PNCNC por veículo por ano)"]
[null,"Frota Patrimonial",{"$f":"$E$9","v":171}]
[null,"Meses por ano",12]
[]
[null,"Licenciamento de Veículos - Total",{"$f":"(C1114*(1+C1115)*C1116)/C1117","v":0}]
[null,"Taxa de Licenciamento (TL) - por veículo ano"]
[null,"Veículos de Apoio "]
[null,"Frota Patrimonial",{"$f":"$E$9","v":171}]
[null,"Meses por ano",12]
[]
[null,"Seguros - Total",{"$f":"(C1120*C1121)/C1122","v":0}]
[null,"Custo por veículo ano"]
[null,"Frota Patrimonial",{"$f":"$E$9","v":171}]
[null,"Meses por ano",12]
[]
[null,"Custo Ambiental - Total",{"$f":"(C1125*C1126*C1127)/C1128","v":0}]
[null,"Percentual"]
[null,"Preço do Veículo Comum Euro VI Novo"]
[null,"Frota Patrimonial",{"$f":"$E$9","v":171}]
[null,"Meses por ano",12]
[]
[null,"Outros Custos Operacionais - Total por KM",{"$f":"(C1131+C1134+C1146+C1151+C1166)/C1178","v":{"$error":"#DIV/0!"}}]
[null,"Sistema de Bilhetagem Eletrônica - Total",{"$f":"C1132*C1133","v":{"$error":"#DIV/0!"}}]
[null,"Despesas Totais",{"$f":"$C$1107+$C$1113+$C$1134+$C$1146+$C$1151+$C$1166+$C$973+$C$1018+$C$679+$C$684+$C$692+$C$410+$C$953+$C$960+SUM(C10:C14)*'01. PC'!C20","v":{"$error":"#DIV/0!"}}]
[null,"Coeficiente do Sistema de Bilhetagem Eletrônica"]
[null,"Locação de Garagem - Total",{"$f":"(C1135+C1136)","v":0}]
[null,"Custo do Aluguel Mensal da Garagem por Veículo - Proporção Independente"]
[null,"Custo do Aluguel Mensal da Garagem por Veículo - Proporção Variável Por Categoria",{"$f":"(C1137*C70)+(C1138*C75)+(C1139*C80)+(C1140*C85)+(C1141*C90)+(C1142*C95)+(C1143*C100)+(C1144*C105)","v":0}]
[null,"Alguel Mensal por Micro Especial"]
[null,"Comum"]
[null,"Semipadron Multimodal"]
[null,"Articulado Padrão"]
[null,"Articulado Multimodal"]
[null,"Articulado 5 Portas LD"]
[null,"Articulados Expresso"]
[null,"Biarticulado"]
[]
[null,"Custo com pedágio",{"$f":"C1147","v":0}]
[null,"Custo com pedágio",{"$f":"C1148*C1149","v":0}]
[null,"Quantidade"]
[null,"Preço"]
[]
[null,"Manutenção de Estações Tubo - Total",{"$f":"C1152+C1163","v":0}]
[null,"Custo Mensal com Pessoal",{"$f":"C1153*C1154","v":0}]
[null,"Quantidade"]
[null,"Preço",{"$f":"C1155+C1161","v":0}]
[null,"Salário + Benefícios",{"$f":"SUM(C1156:C1160)","v":0}]
[null,"Salário Base"]
[null,"Adicional por Tempo de Serviço"]
[null,"Auxílio Alimentação"]
[null,"Auxílio Saúde"]
[null,"Seguro de Vida"]
[null,"Encargos Sociais",{"$f":"(C1156+C1157)*C1162","v":0}]
[null,"Percentual"]
[null,"Custo Mensal com Material de Limpeza",{"$f":"C1164*C1165","v":0}]
[null,"Quantidade Estações Tubos para Limpeza"]
[null,"Preço Material de Limpeza de Estação Tubo (MLET)"]
[null,"Controlador de Acesso de Terminais - Total Mensal",{"$f":"C1167*C1168","v":0}]
[null,"Quantidade"]
[null,"Preço",{"$f":"C1169+C1176","v":0}]
[null,"Salário + Benefícios",{"$f":"SUM(C1170:C1175)","v":0}]
[null,"Salário Base"]
[null,"Adicional por Tempo de Serviço"]
[null,"Auxílio Alimentação"]
[null,"Auxílio Saúde"]
[null,"Seguro de Vida"]
[null,"Uniformes"]
[null,"Encargos Sociais",{"$f":"(C1170+C1171)*C1177","v":0}]
[null,"Percentual"]
[null,"Quilometragem Total",{"$f":"C1105","v":811702.05429999984}]
[]
[null,"Custos Totais por KM",{"$f":"SUM(C1181:C1182)","v":{"$error":"#DIV/0!"}}]
[null,"Custos Variáveis",{"$f":"C9","v":{"$error":"#DIV/0!"}}]
[null,"Custos Fixos",{"$f":"C345","v":{"$error":"#DIV/0!"}}]
[]
[null,"Custos de Remuneração do Serviço (CRS)",{"$f":"C1185*C1186","v":{"$error":"#DIV/0!"}}]
[null,"Taxa Fixa de Remuneração"]
[null,"Custos Variáveis + Despesas com pessoal + Despesas administrativas + Outros Custos Operacionais + Custo de Capital",{"$f":"C1180","v":{"$error":"#DIV/0!"}}]
[]
[null,"Custo por quilômetro",{"$f":"C1190/(1-C1191)","v":{"$error":"#DIV/0!"}}]
[]
[null,"Custos Totais por KM com CRS",{"$f":"C1180+C1184","v":{"$error":"#DIV/0!"}}]
[null,"Tributos",{"$f":"SUM(C1192:C1195)","v":6.4700000000000008E-2}]
[null,"Verba de Gestão",0.04]
[null,"Taxa de Regulação",2.7000000000000001E-3]
[null,"Contribuição Previdenciária (INSS)",0.02]
[null,"Garantias contratuais",2E-3]
[]
[null,"Fator R (remuneração)",1.0868840026122]
[]
[null,"TARIFA DE REMUNERAÇÃO TÉCNICA PROPOSTA",{"$f":"C1188*C1197","v":{"$error":"#DIV/0!"}}]
[]
[null,"TARIFA DE REMUNERAÇÃO TÉCNICA MÁXIMA",12.102780753282756]
[]
[null,"Desconto",{"$f":"C1199/C1201-1","v":{"$error":"#DIV/0!"}}]